{"text_format":"1","workbook":"xlsx","n_sheets":7,"sheets":["main","Sabt","cash","vam","ghest","mali","hesab"],"not_rendered":{"charts":0,"images":0,"macros":1,"external_links":2,"defined_names":1,"comments":0,"pivot_tables":0},"unopened":[],"bounds":{"document_bytes":16777216,"sheet_cells":100000,"rows_first":2000,"rows_last":500,"rows_between":2000,"halvings":0,"cell_chars":16384,"cell_head_chars":4096},"cells_cut":0,"cells_raw":0,"read":"whole","date_system":"1900"}

{"sheet":"main","index":0,"n_rows":10,"n_cols":15,"rows_kept":10,"cut":false,"hidden":false,"merged":[[8,4,8,5],[8,2,8,3],[9,4,9,5],[9,2,9,3],[2,2,2,5],[6,2,6,3],[6,4,6,5],[7,2,7,3],[7,4,7,5],[3,2,3,3],[3,4,3,5],[4,2,4,3],[4,4,4,5],[5,2,5,3],[5,4,5,5],[9,12,9,13],[9,14,9,15],[2,12,2,13],[2,14,2,15],[6,12,6,13],[6,14,6,15],[7,12,7,13],[7,14,7,15],[8,12,8,13],[8,14,8,15],[3,12,3,15],[4,12,4,13],[4,14,4,15],[5,12,5,13],[5,14,5,15]]}
[]
[]
[null,null,"گزارش کلی وضعیت صندوق",null,null,null,null,null,null,null,null,null,"1404/01/01",null,"1404/12/29"]
[null,null,"کل واریز شده :",null,{"$f":"SUMIFS(cash[مبلغ],cash[TYP],1)","v":0},null,null,null,null,null,null,null,"گزارش در دوره تعیین شده"]
[null,null,"کل برداشت شده :",null,{"$f":"SUMIFS(cash[مبلغ],cash[TYP],2)","v":0},null,null,null,null,null,null,null,"کل واریز شده :",null,{"$f":"SUMIFS(cash[مبلغ],cash[TYP],1,cash[تاریخ],\">=\"&M3,cash[تاریخ],\"<=\"&O3)","v":0}]
[null,null,"وام پرداخت شده :",null,{"$f":"SUM(vam[مبلغ وام])","v":0},null,null,null,null,null,null,null,"کل برداشت شده :",null,{"$f":"SUMIFS(cash[مبلغ],cash[TYP],2,cash[تاریخ],\">=\"&M3,cash[تاریخ],\"<=\"&O3)","v":0}]
[null,null,"اقساط دریافت شده :",null,{"$f":"SUM(ghest[مبلغ پرداخته])","v":0},null,null,null,null,null,null,null,"وام پرداخت شده :",null,{"$f":"SUMIFS(vam[مبلغ وام],vam[تاریخ پرداخت],\">=\"&M3,vam[تاریخ پرداخت],\"<=\"&O3)","v":0}]
[null,null,"هزینه های متفرقه :",null,{"$f":"SUMIFS(mali[مبلغ],mali[TYP],1)","v":0},null,null,null,null,null,null,null,"اقساط دریافت شده :",null,{"$f":"SUMIFS(ghest[مبلغ پرداخته],ghest[تاریخ پرداخت],\">=\"&M3,ghest[تاریخ پرداخت],\"<=\"&O3)","v":0}]
[null,null,"درآمد های متفرقه :",null,{"$f":"SUMIFS(mali[مبلغ],mali[TYP],2)","v":0},null,null,null,null,null,null,null,"هزینه های متفرقه :",null,{"$f":"SUMIFS(mali[مبلغ],mali[TYP],1,mali[تاریخ],\">=\"&M3,mali[تاریخ],\"<=\"&O3)","v":0}]
[null,null,"موجودی صندوق :",null,{"$f":"SUM(hesab[موجودی اولیه])+E4-E5-E6+E7-E8+E9","v":0},null,null,null,null,null,null,null,"درآمد های متفرقه :",null,{"$f":"SUMIFS(mali[مبلغ],mali[TYP],2,mali[تاریخ],\">=\"&M3,mali[تاریخ],\"<=\"&O3)","v":0}]

{"sheet":"Sabt","index":1,"n_rows":5,"n_cols":10,"rows_kept":5,"cut":false,"hidden":false,"merged":[[0,5,1,7]]}
[null,null,null,null,null,"آرشیو اطلاعات اعضاء"]
[]
[]
[null,6,{"$f":"J_TODAY(1)","v":"1404/07/09"},null,1,0]
[null,"تاریخ عضویت","نام و نام خانوادگی","نام پدر","کد ملی","شماره تماس","نوع صندوق","تاریخ دریافت وام","آدرس","TYP"]

{"sheet":"cash","index":2,"n_rows":5,"n_cols":10,"rows_kept":5,"cut":false,"hidden":false,"merged":[[0,5,1,7]]}
[null,null,null,null,null,"آرشیو دریافت ها و پرداخت های حساب اعضاء"]
[]
[]
[null,{"$f":"COUNTA(cash[تاریخ])+6","v":6},{"$f":"J_TODAY(1)","v":"1404/07/09"},null,null,{"$f":"IFERROR(VLOOKUP(E4,hesab[],2,FALSE),\"\")","v":""},"واریز","برداشت"]
[null,"تاریخ","نوع","مبلغ","حساب","صاحب حساب","شماره سند","مسئول صندوق","توضیحات مربوطه","TYP"]

{"sheet":"vam","index":3,"n_rows":5,"n_cols":13,"rows_kept":5,"cut":false,"hidden":false,"merged":[[0,4,1,9]]}
[null,null,null,null,"آرشیو اطلاعات وام های پرداخت شده"]
[]
[]
[null,{"$f":"COUNTA(vam[ش تسهیلات])+6","v":6},{"$f":"J_TODAY(1)","v":"1404/07/09"},100000,10,{"$f":"H4*G4-D4","v":10000},12,{"$f":"IFERROR((D4+D4*E4/100)/G4,0)","v":9166.6666666666661},1,{"$f":"IFERROR(VLOOKUP(I4,hesab[],2,FALSE),\"\")","v":""},1,{"$f":"IFERROR(MATCH(K4,vam[ش تسهیلات],0),0)","v":0},{"$f":"MAX(vam[ش تسهیلات])","v":0}]
[null,"ش تسهیلات","تاریخ پرداخت","مبلغ وام","نرخ سود","سود وام","تعداد اقساط","قسط ماهانه","حساب","صاحب حساب","شروع اقساط","توضیحات مربوطه"]

{"sheet":"ghest","index":4,"n_rows":5,"n_cols":10,"rows_kept":5,"cut":false,"hidden":false,"merged":[[0,4,1,7]]}
[null,null,null,null,"آرشیو پرداخت اقساط وام توسط وام گیرندگان"]
[]
[]
[null,{"$f":"COUNTA(ghest[ش تسهیلات])+6","v":6},{"$f":"J_TODAY(1)","v":"1404/07/09"},1,{"$f":"IFERROR(VLOOKUP(D4,vam[],7,FALSE),\"\")","v":""},{"$f":"IFERROR(VLOOKUP(D4,vam[],3,FALSE)+VLOOKUP(D4,vam[],5,FALSE)-SUMIFS(ghest[مبلغ پرداخته],ghest[ش تسهیلات],D4),\"\")","v":""},{"$f":"IFERROR(VLOOKUP(D4,vam[],6,FALSE)-SUMIFS(ghest[تعداد قسط],ghest[ش تسهیلات],D4),\"\")","v":""},{"$f":"IFERROR(VLOOKUP(D4,vam[],8,FALSE),\"\")","v":""},{"$f":"IFERROR(VLOOKUP(D4,vam[],9,FALSE),\"\")","v":""},{"$f":"IFERROR(K4*E4,\"\")","v":""}]
[null,"ش تسهیلات","تاریخ پرداخت","مبلغ پرداخته","تعداد قسط","پرداخت کننده","مسئول صندوق","حساب","صاحب حساب","توضیحات مربوطه"]

{"sheet":"mali","index":5,"n_rows":5,"n_cols":10,"rows_kept":5,"cut":false,"hidden":false,"merged":[[0,5,1,7]]}
[null,null,null,null,null,"آرشیو هزینه ها و درآمد های متفرقه صندوق"]
[]
[]
[null,{"$f":"COUNTA(mali[تاریخ])+6","v":6},{"$f":"J_TODAY(1)","v":"1404/07/09"},null,null,null,"هزینه","درآمد"]
[null,"تاریخ","نوع","مبلغ","حساب","نوع پرداخت","شماره سند","مسئول صندوق","توضیحات مربوطه","TYP"]

{"sheet":"hesab","index":6,"n_rows":203,"n_cols":13,"rows_kept":203,"cut":false,"hidden":false,"merged":[]}
[]
[null,null,{"$f":"COUNTA(hesab[صاحب حساب])","v":0}]
[null,"حساب","صاحب حساب","تاریخ افتتاح","توضیحات حساب","موجودی اولیه","واریز شده","برداشت شده","موجودی حساب","وام گرفته","سود وام","پرداخت اقساط","مانده وام"]
[null,null,null,null,null,null,{"$f":"SUMIFS(cash[مبلغ],cash[TYP],1,cash[حساب],B4)","v":0},{"$f":"SUMIFS(cash[مبلغ],cash[TYP],2,cash[حساب],B4)","v":0},{"$f":"F4+G4-H4","v":0},{"$f":"SUMIFS(vam[مبلغ وام],vam[حساب],B4)","v":0},{"$f":"SUMIFS(vam[سود وام],vam[حساب],B4)","v":0},{"$f":"SUMIFS(ghest[مبلغ پرداخته],ghest[حساب],B4)","v":0},{"$f":"J4+K4-L4","v":0}]
[null,null,null,null,null,null,{"$f":"SUMIFS(cash[مبلغ],cash[TYP],1,cash[حساب],B5)","v":0},{"$f":"SUMIFS(cash[مبلغ],cash[TYP],2,cash[حساب],B5)","v":0},{"$f":"F5+G5-H5","v":0},{"$f":"SUMIFS(vam[مبلغ وام],vam[حساب],B5)","v":0},{"$f":"SUMIFS(vam[سود وام],vam[حساب],B5)","v":0},{"$f":"SUMIFS(ghest[مبلغ پرداخته],ghest[حساب],B5)","v":0},{"$f":"J5+K5-L5","v":0}]
[null,null,null,null,null,null,{"$f":"SUMIFS(cash[مبلغ],cash[TYP],1,cash[حساب],B6)","v":0},{"$f":"SUMIFS(cash[مبلغ],cash[TYP],2,cash[حساب],B6)","v":0},0,{"$f":"SUMIFS(vam[مبلغ وام],vam[حساب],B6)","v":0},{"$f":"SUMIFS(vam[سود وام],vam[حساب],B6)","v":0},{"$f":"SUMIFS(ghest[مبلغ پرداخته],ghest[حساب],B6)","v":0},0]
[null,null,null,null,null,null,{"$f":"SUMIFS(cash[مبلغ],cash[TYP],1,cash[حساب],B7)","v":0},{"$f":"SUMIFS(cash[مبلغ],cash[TYP],2,cash[حساب],B7)","v":0},0,{"$f":"SUMIFS(vam[مبلغ وام],vam[حساب],B7)","v":0},{"$f":"SUMIFS(vam[سود وام],vam[حساب],B7)","v":0},{"$f":"SUMIFS(ghest[مبلغ پرداخته],ghest[حساب],B7)","v":0},0]
[null,null,null,null,null,null,{"$f":"SUMIFS(cash[مبلغ],cash[TYP],1,cash[حساب],B8)","v":0},{"$f":"SUMIFS(cash[مبلغ],cash[TYP],2,cash[حساب],B8)","v":0},0,{"$f":"SUMIFS(vam[مبلغ وام],vam[حساب],B8)","v":0},{"$f":"SUMIFS(vam[سود وام],vam[حساب],B8)","v":0},{"$f":"SUMIFS(ghest[مبلغ پرداخته],ghest[حساب],B8)","v":0},0]
[null,null,null,null,null,null,{"$f":"SUMIFS(cash[مبلغ],cash[TYP],1,cash[حساب],B9)","v":0},{"$f":"SUMIFS(cash[مبلغ],cash[TYP],2,cash[حساب],B9)","v":0},0,{"$f":"SUMIFS(vam[مبلغ وام],vam[حساب],B9)","v":0},{"$f":"SUMIFS(vam[سود وام],vam[حساب],B9)","v":0},{"$f":"SUMIFS(ghest[مبلغ پرداخته],ghest[حساب],B9)","v":0},0]
[null,null,null,null,null,null,{"$f":"SUMIFS(cash[مبلغ],cash[TYP],1,cash[حساب],B10)","v":0},{"$f":"SUMIFS(cash[مبلغ],cash[TYP],2,cash[حساب],B10)","v":0},0,{"$f":"SUMIFS(vam[مبلغ وام],vam[حساب],B10)","v":0},{"$f":"SUMIFS(vam[سود وام],vam[حساب],B10)","v":0},{"$f":"SUMIFS(ghest[مبلغ پرداخته],ghest[حساب],B10)","v":0},0]
[null,null,null,null,null,null,{"$f":"SUMIFS(cash[مبلغ],cash[TYP],1,cash[حساب],B11)","v":0},{"$f":"SUMIFS(cash[مبلغ],cash[TYP],2,cash[حساب],B11)","v":0},0,{"$f":"SUMIFS(vam[مبلغ وام],vam[حساب],B11)","v":0},{"$f":"SUMIFS(vam[سود وام],vam[حساب],B11)","v":0},{"$f":"SUMIFS(ghest[مبلغ پرداخته],ghest[حساب],B11)","v":0},0]
[null,null,null,null,null,null,{"$f":"SUMIFS(cash[مبلغ],cash[TYP],1,cash[حساب],B12)","v":0},{"$f":"SUMIFS(cash[مبلغ],cash[TYP],2,cash[حساب],B12)","v":0},0,{"$f":"SUMIFS(vam[مبلغ وام],vam[حساب],B12)","v":0},{"$f":"SUMIFS(vam[سود وام],vam[حساب],B12)","v":0},{"$f":"SUMIFS(ghest[مبلغ پرداخته],ghest[حساب],B12)","v":0},0]
[null,null,null,null,null,null,{"$f":"SUMIFS(cash[مبلغ],cash[TYP],1,cash[حساب],B13)","v":0},{"$f":"SUMIFS(cash[مبلغ],cash[TYP],2,cash[حساب],B13)","v":0},0,{"$f":"SUMIFS(vam[مبلغ وام],vam[حساب],B13)","v":0},{"$f":"SUMIFS(vam[سود وام],vam[حساب],B13)","v":0},{"$f":"SUMIFS(ghest[مبلغ پرداخته],ghest[حساب],B13)","v":0},0]
[null,null,null,null,null,null,{"$f":"SUMIFS(cash[مبلغ],cash[TYP],1,cash[حساب],B14)","v":0},{"$f":"SUMIFS(cash[مبلغ],cash[TYP],2,cash[حساب],B14)","v":0},0,{"$f":"SUMIFS(vam[مبلغ وام],vam[حساب],B14)","v":0},{"$f":"SUMIFS(vam[سود وام],vam[حساب],B14)","v":0},{"$f":"SUMIFS(ghest[مبلغ پرداخته],ghest[حساب],B14)","v":0},0]
[null,null,null,null,null,null,{"$f":"SUMIFS(cash[مبلغ],cash[TYP],1,cash[حساب],B15)","v":0},{"$f":"SUMIFS(cash[مبلغ],cash[TYP],2,cash[حساب],B15)","v":0},0,{"$f":"SUMIFS(vam[مبلغ وام],vam[حساب],B15)","v":0},{"$f":"SUMIFS(vam[سود وام],vam[حساب],B15)","v":0},{"$f":"SUMIFS(ghest[مبلغ پرداخته],ghest[حساب],B15)","v":0},0]
[null,null,null,null,null,null,{"$f":"SUMIFS(cash[مبلغ],cash[TYP],1,cash[حساب],B16)","v":0},{"$f":"SUMIFS(cash[مبلغ],cash[TYP],2,cash[حساب],B16)","v":0},0,{"$f":"SUMIFS(vam[مبلغ وام],vam[حساب],B16)","v":0},{"$f":"SUMIFS(vam[سود وام],vam[حساب],B16)","v":0},{"$f":"SUMIFS(ghest[مبلغ پرداخته],ghest[حساب],B16)","v":0},0]
[null,null,null,null,null,null,{"$f":"SUMIFS(cash[مبلغ],cash[TYP],1,cash[حساب],B17)","v":0},{"$f":"SUMIFS(cash[مبلغ],cash[TYP],2,cash[حساب],B17)","v":0},0,{"$f":"SUMIFS(vam[مبلغ وام],vam[حساب],B17)","v":0},{"$f":"SUMIFS(vam[سود وام],vam[حساب],B17)","v":0},{"$f":"SUMIFS(ghest[مبلغ پرداخته],ghest[حساب],B17)","v":0},0]
[null,null,null,null,null,null,{"$f":"SUMIFS(cash[مبلغ],cash[TYP],1,cash[حساب],B18)","v":0},{"$f":"SUMIFS(cash[مبلغ],cash[TYP],2,cash[حساب],B18)","v":0},0,{"$f":"SUMIFS(vam[مبلغ وام],vam[حساب],B18)","v":0},{"$f":"SUMIFS(vam[سود وام],vam[حساب],B18)","v":0},{"$f":"SUMIFS(ghest[مبلغ پرداخته],ghest[حساب],B18)","v":0},0]
[null,null,null,null,null,null,{"$f":"SUMIFS(cash[مبلغ],cash[TYP],1,cash[حساب],B19)","v":0},{"$f":"SUMIFS(cash[مبلغ],cash[TYP],2,cash[حساب],B19)","v":0},0,{"$f":"SUMIFS(vam[مبلغ وام],vam[حساب],B19)","v":0},{"$f":"SUMIFS(vam[سود وام],vam[حساب],B19)","v":0},{"$f":"SUMIFS(ghest[مبلغ پرداخته],ghest[حساب],B19)","v":0},0]
[null,null,null,null,null,null,{"$f":"SUMIFS(cash[مبلغ],cash[TYP],1,cash[حساب],B20)","v":0},{"$f":"SUMIFS(cash[مبلغ],cash[TYP],2,cash[حساب],B20)","v":0},0,{"$f":"SUMIFS(vam[مبلغ وام],vam[حساب],B20)","v":0},{"$f":"SUMIFS(vam[سود وام],vam[حساب],B20)","v":0},{"$f":"SUMIFS(ghest[مبلغ پرداخته],ghest[حساب],B20)","v":0},0]
[null,null,null,null,null,null,{"$f":"SUMIFS(cash[مبلغ],cash[TYP],1,cash[حساب],B21)","v":0},{"$f":"SUMIFS(cash[مبلغ],cash[TYP],2,cash[حساب],B21)","v":0},0,{"$f":"SUMIFS(vam[مبلغ وام],vam[حساب],B21)","v":0},{"$f":"SUMIFS(vam[سود وام],vam[حساب],B21)","v":0},{"$f":"SUMIFS(ghest[مبلغ پرداخته],ghest[حساب],B21)","v":0},0]
[null,null,null,null,null,null,{"$f":"SUMIFS(cash[مبلغ],cash[TYP],1,cash[حساب],B22)","v":0},{"$f":"SUMIFS(cash[مبلغ],cash[TYP],2,cash[حساب],B22)","v":0},0,{"$f":"SUMIFS(vam[مبلغ وام],vam[حساب],B22)","v":0},{"$f":"SUMIFS(vam[سود وام],vam[حساب],B22)","v":0},{"$f":"SUMIFS(ghest[مبلغ پرداخته],ghest[حساب],B22)","v":0},0]
[null,null,null,null,null,null,{"$f":"SUMIFS(cash[مبلغ],cash[TYP],1,cash[حساب],B23)","v":0},{"$f":"SUMIFS(cash[مبلغ],cash[TYP],2,cash[حساب],B23)","v":0},0,{"$f":"SUMIFS(vam[مبلغ وام],vam[حساب],B23)","v":0},{"$f":"SUMIFS(vam[سود وام],vam[حساب],B23)","v":0},{"$f":"SUMIFS(ghest[مبلغ پرداخته],ghest[حساب],B23)","v":0},0]
[null,null,null,null,null,null,{"$f":"SUMIFS(cash[مبلغ],cash[TYP],1,cash[حساب],B24)","v":0},{"$f":"SUMIFS(cash[مبلغ],cash[TYP],2,cash[حساب],B24)","v":0},0,{"$f":"SUMIFS(vam[مبلغ وام],vam[حساب],B24)","v":0},{"$f":"SUMIFS(vam[سود وام],vam[حساب],B24)","v":0},{"$f":"SUMIFS(ghest[مبلغ پرداخته],ghest[حساب],B24)","v":0},0]
[null,null,null,null,null,null,{"$f":"SUMIFS(cash[مبلغ],cash[TYP],1,cash[حساب],B25)","v":0},{"$f":"SUMIFS(cash[مبلغ],cash[TYP],2,cash[حساب],B25)","v":0},0,{"$f":"SUMIFS(vam[مبلغ وام],vam[حساب],B25)","v":0},{"$f":"SUMIFS(vam[سود وام],vam[حساب],B25)","v":0},{"$f":"SUMIFS(ghest[مبلغ پرداخته],ghest[حساب],B25)","v":0},0]
[null,null,null,null,null,null,{"$f":"SUMIFS(cash[مبلغ],cash[TYP],1,cash[حساب],B26)","v":0},{"$f":"SUMIFS(cash[مبلغ],cash[TYP],2,cash[حساب],B26)","v":0},0,{"$f":"SUMIFS(vam[مبلغ وام],vam[حساب],B26)","v":0},{"$f":"SUMIFS(vam[سود وام],vam[حساب],B26)","v":0},{"$f":"SUMIFS(ghest[مبلغ پرداخته],ghest[حساب],B26)","v":0},0]
[null,null,null,null,null,null,{"$f":"SUMIFS(cash[مبلغ],cash[TYP],1,cash[حساب],B27)","v":0},{"$f":"SUMIFS(cash[مبلغ],cash[TYP],2,cash[حساب],B27)","v":0},0,{"$f":"SUMIFS(vam[مبلغ وام],vam[حساب],B27)","v":0},{"$f":"SUMIFS(vam[سود وام],vam[حساب],B27)","v":0},{"$f":"SUMIFS(ghest[مبلغ پرداخته],ghest[حساب],B27)","v":0},0]
[null,null,null,null,null,null,{"$f":"SUMIFS(cash[مبلغ],cash[TYP],1,cash[حساب],B28)","v":0},{"$f":"SUMIFS(cash[مبلغ],cash[TYP],2,cash[حساب],B28)","v":0},0,{"$f":"SUMIFS(vam[مبلغ وام],vam[حساب],B28)","v":0},{"$f":"SUMIFS(vam[سود وام],vam[حساب],B28)","v":0},{"$f":"SUMIFS(ghest[مبلغ پرداخته],ghest[حساب],B28)","v":0},0]
[null,null,null,null,null,null,{"$f":"SUMIFS(cash[مبلغ],cash[TYP],1,cash[حساب],B29)","v":0},{"$f":"SUMIFS(cash[مبلغ],cash[TYP],2,cash[حساب],B29)","v":0},0,{"$f":"SUMIFS(vam[مبلغ وام],vam[حساب],B29)","v":0},{"$f":"SUMIFS(vam[سود وام],vam[حساب],B29)","v":0},{"$f":"SUMIFS(ghest[مبلغ پرداخته],ghest[حساب],B29)","v":0},0]
[null,null,null,null,null,null,{"$f":"SUMIFS(cash[مبلغ],cash[TYP],1,cash[حساب],B30)","v":0},{"$f":"SUMIFS(cash[مبلغ],cash[TYP],2,cash[حساب],B30)","v":0},0,{"$f":"SUMIFS(vam[مبلغ وام],vam[حساب],B30)","v":0},{"$f":"SUMIFS(vam[سود وام],vam[حساب],B30)","v":0},{"$f":"SUMIFS(ghest[مبلغ پرداخته],ghest[حساب],B30)","v":0},0]
[null,null,null,null,null,null,{"$f":"SUMIFS(cash[مبلغ],cash[TYP],1,cash[حساب],B31)","v":0},{"$f":"SUMIFS(cash[مبلغ],cash[TYP],2,cash[حساب],B31)","v":0},0,{"$f":"SUMIFS(vam[مبلغ وام],vam[حساب],B31)","v":0},{"$f":"SUMIFS(vam[سود وام],vam[حساب],B31)","v":0},{"$f":"SUMIFS(ghest[مبلغ پرداخته],ghest[حساب],B31)","v":0},0]
[null,null,null,null,null,null,{"$f":"SUMIFS(cash[مبلغ],cash[TYP],1,cash[حساب],B32)","v":0},{"$f":"SUMIFS(cash[مبلغ],cash[TYP],2,cash[حساب],B32)","v":0},0,{"$f":"SUMIFS(vam[مبلغ وام],vam[حساب],B32)","v":0},{"$f":"SUMIFS(vam[سود وام],vam[حساب],B32)","v":0},{"$f":"SUMIFS(ghest[مبلغ پرداخته],ghest[حساب],B32)","v":0},0]
[null,null,null,null,null,null,{"$f":"SUMIFS(cash[مبلغ],cash[TYP],1,cash[حساب],B33)","v":0},{"$f":"SUMIFS(cash[مبلغ],cash[TYP],2,cash[حساب],B33)","v":0},0,{"$f":"SUMIFS(vam[مبلغ وام],vam[حساب],B33)","v":0},{"$f":"SUMIFS(vam[سود وام],vam[حساب],B33)","v":0},{"$f":"SUMIFS(ghest[مبلغ پرداخته],ghest[حساب],B33)","v":0},0]
[null,null,null,null,null,null,{"$f":"SUMIFS(cash[مبلغ],cash[TYP],1,cash[حساب],B34)","v":0},{"$f":"SUMIFS(cash[مبلغ],cash[TYP],2,cash[حساب],B34)","v":0},0,{"$f":"SUMIFS(vam[مبلغ وام],vam[حساب],B34)","v":0},{"$f":"SUMIFS(vam[سود وام],vam[حساب],B34)","v":0},{"$f":"SUMIFS(ghest[مبلغ پرداخته],ghest[حساب],B34)","v":0},0]
[null,null,null,null,null,null,{"$f":"SUMIFS(cash[مبلغ],cash[TYP],1,cash[حساب],B35)","v":0},{"$f":"SUMIFS(cash[مبلغ],cash[TYP],2,cash[حساب],B35)","v":0},0,{"$f":"SUMIFS(vam[مبلغ وام],vam[حساب],B35)","v":0},{"$f":"SUMIFS(vam[سود وام],vam[حساب],B35)","v":0},{"$f":"SUMIFS(ghest[مبلغ پرداخته],ghest[حساب],B35)","v":0},0]
[null,null,null,null,null,null,{"$f":"SUMIFS(cash[مبلغ],cash[TYP],1,cash[حساب],B36)","v":0},{"$f":"SUMIFS(cash[مبلغ],cash[TYP],2,cash[حساب],B36)","v":0},{"$f":"F36+G36-H36","v":0},{"$f":"SUMIFS(vam[مبلغ وام],vam[حساب],B36)","v":0},{"$f":"SUMIFS(vam[سود وام],vam[حساب],B36)","v":0},{"$f":"SUMIFS(ghest[مبلغ پرداخته],ghest[حساب],B36)","v":0},{"$f":"J36+K36-L36","v":0}]
[null,null,null,null,null,null,{"$f":"SUMIFS(cash[مبلغ],cash[TYP],1,cash[حساب],B37)","v":0},{"$f":"SUMIFS(cash[مبلغ],cash[TYP],2,cash[حساب],B37)","v":0},0,{"$f":"SUMIFS(vam[مبلغ وام],vam[حساب],B37)","v":0},{"$f":"SUMIFS(vam[سود وام],vam[حساب],B37)","v":0},{"$f":"SUMIFS(ghest[مبلغ پرداخته],ghest[حساب],B37)","v":0},0]
[null,null,null,null,null,null,{"$f":"SUMIFS(cash[مبلغ],cash[TYP],1,cash[حساب],B38)","v":0},{"$f":"SUMIFS(cash[مبلغ],cash[TYP],2,cash[حساب],B38)","v":0},0,{"$f":"SUMIFS(vam[مبلغ وام],vam[حساب],B38)","v":0},{"$f":"SUMIFS(vam[سود وام],vam[حساب],B38)","v":0},{"$f":"SUMIFS(ghest[مبلغ پرداخته],ghest[حساب],B38)","v":0},0]
[null,null,null,null,null,null,{"$f":"SUMIFS(cash[مبلغ],cash[TYP],1,cash[حساب],B39)","v":0},{"$f":"SUMIFS(cash[مبلغ],cash[TYP],2,cash[حساب],B39)","v":0},0,{"$f":"SUMIFS(vam[مبلغ وام],vam[حساب],B39)","v":0},{"$f":"SUMIFS(vam[سود وام],vam[حساب],B39)","v":0},{"$f":"SUMIFS(ghest[مبلغ پرداخته],ghest[حساب],B39)","v":0},0]
[null,null,null,null,null,null,{"$f":"SUMIFS(cash[مبلغ],cash[TYP],1,cash[حساب],B40)","v":0},{"$f":"SUMIFS(cash[مبلغ],cash[TYP],2,cash[حساب],B40)","v":0},0,{"$f":"SUMIFS(vam[مبلغ وام],vam[حساب],B40)","v":0},{"$f":"SUMIFS(vam[سود وام],vam[حساب],B40)","v":0},{"$f":"SUMIFS(ghest[مبلغ پرداخته],ghest[حساب],B40)","v":0},0]
[null,null,null,null,null,null,{"$f":"SUMIFS(cash[مبلغ],cash[TYP],1,cash[حساب],B41)","v":0},{"$f":"SUMIFS(cash[مبلغ],cash[TYP],2,cash[حساب],B41)","v":0},0,{"$f":"SUMIFS(vam[مبلغ وام],vam[حساب],B41)","v":0},{"$f":"SUMIFS(vam[سود وام],vam[حساب],B41)","v":0},{"$f":"SUMIFS(ghest[مبلغ پرداخته],ghest[حساب],B41)","v":0},0]
[null,null,null,null,null,null,{"$f":"SUMIFS(cash[مبلغ],cash[TYP],1,cash[حساب],B42)","v":0},{"$f":"SUMIFS(cash[مبلغ],cash[TYP],2,cash[حساب],B42)","v":0},0,{"$f":"SUMIFS(vam[مبلغ وام],vam[حساب],B42)","v":0},{"$f":"SUMIFS(vam[سود وام],vam[حساب],B42)","v":0},{"$f":"SUMIFS(ghest[مبلغ پرداخته],ghest[حساب],B42)","v":0},0]
[null,null,null,null,null,null,{"$f":"SUMIFS(cash[مبلغ],cash[TYP],1,cash[حساب],B43)","v":0},{"$f":"SUMIFS(cash[مبلغ],cash[TYP],2,cash[حساب],B43)","v":0},0,{"$f":"SUMIFS(vam[مبلغ وام],vam[حساب],B43)","v":0},{"$f":"SUMIFS(vam[سود وام],vam[حساب],B43)","v":0},{"$f":"SUMIFS(ghest[مبلغ پرداخته],ghest[حساب],B43)","v":0},0]
[null,null,null,null,null,null,{"$f":"SUMIFS(cash[مبلغ],cash[TYP],1,cash[حساب],B44)","v":0},{"$f":"SUMIFS(cash[مبلغ],cash[TYP],2,cash[حساب],B44)","v":0},0,{"$f":"SUMIFS(vam[مبلغ وام],vam[حساب],B44)","v":0},{"$f":"SUMIFS(vam[سود وام],vam[حساب],B44)","v":0},{"$f":"SUMIFS(ghest[مبلغ پرداخته],ghest[حساب],B44)","v":0},0]
[null,null,null,null,null,null,{"$f":"SUMIFS(cash[مبلغ],cash[TYP],1,cash[حساب],B45)","v":0},{"$f":"SUMIFS(cash[مبلغ],cash[TYP],2,cash[حساب],B45)","v":0},0,{"$f":"SUMIFS(vam[مبلغ وام],vam[حساب],B45)","v":0},{"$f":"SUMIFS(vam[سود وام],vam[حساب],B45)","v":0},{"$f":"SUMIFS(ghest[مبلغ پرداخته],ghest[حساب],B45)","v":0},0]
[null,null,null,null,null,null,{"$f":"SUMIFS(cash[مبلغ],cash[TYP],1,cash[حساب],B46)","v":0},{"$f":"SUMIFS(cash[مبلغ],cash[TYP],2,cash[حساب],B46)","v":0},0,{"$f":"SUMIFS(vam[مبلغ وام],vam[حساب],B46)","v":0},{"$f":"SUMIFS(vam[سود وام],vam[حساب],B46)","v":0},{"$f":"SUMIFS(ghest[مبلغ پرداخته],ghest[حساب],B46)","v":0},0]
[null,null,null,null,null,null,{"$f":"SUMIFS(cash[مبلغ],cash[TYP],1,cash[حساب],B47)","v":0},{"$f":"SUMIFS(cash[مبلغ],cash[TYP],2,cash[حساب],B47)","v":0},0,{"$f":"SUMIFS(vam[مبلغ وام],vam[حساب],B47)","v":0},{"$f":"SUMIFS(vam[سود وام],vam[حساب],B47)","v":0},{"$f":"SUMIFS(ghest[مبلغ پرداخته],ghest[حساب],B47)","v":0},0]
[null,null,null,null,null,null,{"$f":"SUMIFS(cash[مبلغ],cash[TYP],1,cash[حساب],B48)","v":0},{"$f":"SUMIFS(cash[مبلغ],cash[TYP],2,cash[حساب],B48)","v":0},0,{"$f":"SUMIFS(vam[مبلغ وام],vam[حساب],B48)","v":0},{"$f":"SUMIFS(vam[سود وام],vam[حساب],B48)","v":0},{"$f":"SUMIFS(ghest[مبلغ پرداخته],ghest[حساب],B48)","v":0},0]
[null,null,null,null,null,null,{"$f":"SUMIFS(cash[مبلغ],cash[TYP],1,cash[حساب],B49)","v":0},{"$f":"SUMIFS(cash[مبلغ],cash[TYP],2,cash[حساب],B49)","v":0},0,{"$f":"SUMIFS(vam[مبلغ وام],vam[حساب],B49)","v":0},{"$f":"SUMIFS(vam[سود وام],vam[حساب],B49)","v":0},{"$f":"SUMIFS(ghest[مبلغ پرداخته],ghest[حساب],B49)","v":0},0]
[null,null,null,null,null,null,{"$f":"SUMIFS(cash[مبلغ],cash[TYP],1,cash[حساب],B50)","v":0},{"$f":"SUMIFS(cash[مبلغ],cash[TYP],2,cash[حساب],B50)","v":0},0,{"$f":"SUMIFS(vam[مبلغ وام],vam[حساب],B50)","v":0},{"$f":"SUMIFS(vam[سود وام],vam[حساب],B50)","v":0},{"$f":"SUMIFS(ghest[مبلغ پرداخته],ghest[حساب],B50)","v":0},0]
[null,null,null,null,null,null,{"$f":"SUMIFS(cash[مبلغ],cash[TYP],1,cash[حساب],B51)","v":0},{"$f":"SUMIFS(cash[مبلغ],cash[TYP],2,cash[حساب],B51)","v":0},0,{"$f":"SUMIFS(vam[مبلغ وام],vam[حساب],B51)","v":0},{"$f":"SUMIFS(vam[سود وام],vam[حساب],B51)","v":0},{"$f":"SUMIFS(ghest[مبلغ پرداخته],ghest[حساب],B51)","v":0},0]
[null,null,null,null,null,null,{"$f":"SUMIFS(cash[مبلغ],cash[TYP],1,cash[حساب],B52)","v":0},{"$f":"SUMIFS(cash[مبلغ],cash[TYP],2,cash[حساب],B52)","v":0},0,{"$f":"SUMIFS(vam[مبلغ وام],vam[حساب],B52)","v":0},{"$f":"SUMIFS(vam[سود وام],vam[حساب],B52)","v":0},{"$f":"SUMIFS(ghest[مبلغ پرداخته],ghest[حساب],B52)","v":0},0]
[null,null,null,null,null,null,{"$f":"SUMIFS(cash[مبلغ],cash[TYP],1,cash[حساب],B53)","v":0},{"$f":"SUMIFS(cash[مبلغ],cash[TYP],2,cash[حساب],B53)","v":0},0,{"$f":"SUMIFS(vam[مبلغ وام],vam[حساب],B53)","v":0},{"$f":"SUMIFS(vam[سود وام],vam[حساب],B53)","v":0},{"$f":"SUMIFS(ghest[مبلغ پرداخته],ghest[حساب],B53)","v":0},0]
[null,null,null,null,null,null,{"$f":"SUMIFS(cash[مبلغ],cash[TYP],1,cash[حساب],B54)","v":0},{"$f":"SUMIFS(cash[مبلغ],cash[TYP],2,cash[حساب],B54)","v":0},0,{"$f":"SUMIFS(vam[مبلغ وام],vam[حساب],B54)","v":0},{"$f":"SUMIFS(vam[سود وام],vam[حساب],B54)","v":0},{"$f":"SUMIFS(ghest[مبلغ پرداخته],ghest[حساب],B54)","v":0},0]
[null,null,null,null,null,null,{"$f":"SUMIFS(cash[مبلغ],cash[TYP],1,cash[حساب],B55)","v":0},{"$f":"SUMIFS(cash[مبلغ],cash[TYP],2,cash[حساب],B55)","v":0},0,{"$f":"SUMIFS(vam[مبلغ وام],vam[حساب],B55)","v":0},{"$f":"SUMIFS(vam[سود وام],vam[حساب],B55)","v":0},{"$f":"SUMIFS(ghest[مبلغ پرداخته],ghest[حساب],B55)","v":0},0]
[null,null,null,null,null,null,{"$f":"SUMIFS(cash[مبلغ],cash[TYP],1,cash[حساب],B56)","v":0},{"$f":"SUMIFS(cash[مبلغ],cash[TYP],2,cash[حساب],B56)","v":0},{"$f":"F56+G56-H56","v":0},{"$f":"SUMIFS(vam[مبلغ وام],vam[حساب],B56)","v":0},{"$f":"SUMIFS(vam[سود وام],vam[حساب],B56)","v":0},{"$f":"SUMIFS(ghest[مبلغ پرداخته],ghest[حساب],B56)","v":0},{"$f":"J56+K56-L56","v":0}]
[null,null,null,null,null,null,{"$f":"SUMIFS(cash[مبلغ],cash[TYP],1,cash[حساب],B57)","v":0},{"$f":"SUMIFS(cash[مبلغ],cash[TYP],2,cash[حساب],B57)","v":0},0,{"$f":"SUMIFS(vam[مبلغ وام],vam[حساب],B57)","v":0},{"$f":"SUMIFS(vam[سود وام],vam[حساب],B57)","v":0},{"$f":"SUMIFS(ghest[مبلغ پرداخته],ghest[حساب],B57)","v":0},0]
[null,null,null,null,null,null,{"$f":"SUMIFS(cash[مبلغ],cash[TYP],1,cash[حساب],B58)","v":0},{"$f":"SUMIFS(cash[مبلغ],cash[TYP],2,cash[حساب],B58)","v":0},0,{"$f":"SUMIFS(vam[مبلغ وام],vam[حساب],B58)","v":0},{"$f":"SUMIFS(vam[سود وام],vam[حساب],B58)","v":0},{"$f":"SUMIFS(ghest[مبلغ پرداخته],ghest[حساب],B58)","v":0},0]
[null,null,null,null,null,null,{"$f":"SUMIFS(cash[مبلغ],cash[TYP],1,cash[حساب],B59)","v":0},{"$f":"SUMIFS(cash[مبلغ],cash[TYP],2,cash[حساب],B59)","v":0},0,{"$f":"SUMIFS(vam[مبلغ وام],vam[حساب],B59)","v":0},{"$f":"SUMIFS(vam[سود وام],vam[حساب],B59)","v":0},{"$f":"SUMIFS(ghest[مبلغ پرداخته],ghest[حساب],B59)","v":0},0]
[null,null,null,null,null,null,{"$f":"SUMIFS(cash[مبلغ],cash[TYP],1,cash[حساب],B60)","v":0},{"$f":"SUMIFS(cash[مبلغ],cash[TYP],2,cash[حساب],B60)","v":0},0,{"$f":"SUMIFS(vam[مبلغ وام],vam[حساب],B60)","v":0},{"$f":"SUMIFS(vam[سود وام],vam[حساب],B60)","v":0},{"$f":"SUMIFS(ghest[مبلغ پرداخته],ghest[حساب],B60)","v":0},0]
[null,null,null,null,null,null,{"$f":"SUMIFS(cash[مبلغ],cash[TYP],1,cash[حساب],B61)","v":0},{"$f":"SUMIFS(cash[مبلغ],cash[TYP],2,cash[حساب],B61)","v":0},0,{"$f":"SUMIFS(vam[مبلغ وام],vam[حساب],B61)","v":0},{"$f":"SUMIFS(vam[سود وام],vam[حساب],B61)","v":0},{"$f":"SUMIFS(ghest[مبلغ پرداخته],ghest[حساب],B61)","v":0},0]
[null,null,null,null,null,null,{"$f":"SUMIFS(cash[مبلغ],cash[TYP],1,cash[حساب],B62)","v":0},{"$f":"SUMIFS(cash[مبلغ],cash[TYP],2,cash[حساب],B62)","v":0},0,{"$f":"SUMIFS(vam[مبلغ وام],vam[حساب],B62)","v":0},{"$f":"SUMIFS(vam[سود وام],vam[حساب],B62)","v":0},{"$f":"SUMIFS(ghest[مبلغ پرداخته],ghest[حساب],B62)","v":0},0]
[null,null,null,null,null,null,{"$f":"SUMIFS(cash[مبلغ],cash[TYP],1,cash[حساب],B63)","v":0},{"$f":"SUMIFS(cash[مبلغ],cash[TYP],2,cash[حساب],B63)","v":0},0,{"$f":"SUMIFS(vam[مبلغ وام],vam[حساب],B63)","v":0},{"$f":"SUMIFS(vam[سود وام],vam[حساب],B63)","v":0},{"$f":"SUMIFS(ghest[مبلغ پرداخته],ghest[حساب],B63)","v":0},0]
[null,null,null,null,null,null,{"$f":"SUMIFS(cash[مبلغ],cash[TYP],1,cash[حساب],B64)","v":0},{"$f":"SUMIFS(cash[مبلغ],cash[TYP],2,cash[حساب],B64)","v":0},0,{"$f":"SUMIFS(vam[مبلغ وام],vam[حساب],B64)","v":0},{"$f":"SUMIFS(vam[سود وام],vam[حساب],B64)","v":0},{"$f":"SUMIFS(ghest[مبلغ پرداخته],ghest[حساب],B64)","v":0},0]
[null,null,null,null,null,null,{"$f":"SUMIFS(cash[مبلغ],cash[TYP],1,cash[حساب],B65)","v":0},{"$f":"SUMIFS(cash[مبلغ],cash[TYP],2,cash[حساب],B65)","v":0},0,{"$f":"SUMIFS(vam[مبلغ وام],vam[حساب],B65)","v":0},{"$f":"SUMIFS(vam[سود وام],vam[حساب],B65)","v":0},{"$f":"SUMIFS(ghest[مبلغ پرداخته],ghest[حساب],B65)","v":0},0]
[null,null,null,null,null,null,{"$f":"SUMIFS(cash[مبلغ],cash[TYP],1,cash[حساب],B66)","v":0},{"$f":"SUMIFS(cash[مبلغ],cash[TYP],2,cash[حساب],B66)","v":0},0,{"$f":"SUMIFS(vam[مبلغ وام],vam[حساب],B66)","v":0},{"$f":"SUMIFS(vam[سود وام],vam[حساب],B66)","v":0},{"$f":"SUMIFS(ghest[مبلغ پرداخته],ghest[حساب],B66)","v":0},0]
[null,null,null,null,null,null,{"$f":"SUMIFS(cash[مبلغ],cash[TYP],1,cash[حساب],B67)","v":0},{"$f":"SUMIFS(cash[مبلغ],cash[TYP],2,cash[حساب],B67)","v":0},0,{"$f":"SUMIFS(vam[مبلغ وام],vam[حساب],B67)","v":0},{"$f":"SUMIFS(vam[سود وام],vam[حساب],B67)","v":0},{"$f":"SUMIFS(ghest[مبلغ پرداخته],ghest[حساب],B67)","v":0},0]
[null,null,null,null,null,null,{"$f":"SUMIFS(cash[مبلغ],cash[TYP],1,cash[حساب],B68)","v":0},{"$f":"SUMIFS(cash[مبلغ],cash[TYP],2,cash[حساب],B68)","v":0},0,{"$f":"SUMIFS(vam[مبلغ وام],vam[حساب],B68)","v":0},{"$f":"SUMIFS(vam[سود وام],vam[حساب],B68)","v":0},{"$f":"SUMIFS(ghest[مبلغ پرداخته],ghest[حساب],B68)","v":0},0]
[null,null,null,null,null,null,{"$f":"SUMIFS(cash[مبلغ],cash[TYP],1,cash[حساب],B69)","v":0},{"$f":"SUMIFS(cash[مبلغ],cash[TYP],2,cash[حساب],B69)","v":0},0,{"$f":"SUMIFS(vam[مبلغ وام],vam[حساب],B69)","v":0},{"$f":"SUMIFS(vam[سود وام],vam[حساب],B69)","v":0},{"$f":"SUMIFS(ghest[مبلغ پرداخته],ghest[حساب],B69)","v":0},0]
[null,null,null,null,null,null,{"$f":"SUMIFS(cash[مبلغ],cash[TYP],1,cash[حساب],B70)","v":0},{"$f":"SUMIFS(cash[مبلغ],cash[TYP],2,cash[حساب],B70)","v":0},0,{"$f":"SUMIFS(vam[مبلغ وام],vam[حساب],B70)","v":0},{"$f":"SUMIFS(vam[سود وام],vam[حساب],B70)","v":0},{"$f":"SUMIFS(ghest[مبلغ پرداخته],ghest[حساب],B70)","v":0},0]
[null,null,null,null,null,null,{"$f":"SUMIFS(cash[مبلغ],cash[TYP],1,cash[حساب],B71)","v":0},{"$f":"SUMIFS(cash[مبلغ],cash[TYP],2,cash[حساب],B71)","v":0},0,{"$f":"SUMIFS(vam[مبلغ وام],vam[حساب],B71)","v":0},{"$f":"SUMIFS(vam[سود وام],vam[حساب],B71)","v":0},{"$f":"SUMIFS(ghest[مبلغ پرداخته],ghest[حساب],B71)","v":0},0]
[null,null,null,null,null,null,{"$f":"SUMIFS(cash[مبلغ],cash[TYP],1,cash[حساب],B72)","v":0},{"$f":"SUMIFS(cash[مبلغ],cash[TYP],2,cash[حساب],B72)","v":0},0,{"$f":"SUMIFS(vam[مبلغ وام],vam[حساب],B72)","v":0},{"$f":"SUMIFS(vam[سود وام],vam[حساب],B72)","v":0},{"$f":"SUMIFS(ghest[مبلغ پرداخته],ghest[حساب],B72)","v":0},0]
[null,null,null,null,null,null,{"$f":"SUMIFS(cash[مبلغ],cash[TYP],1,cash[حساب],B73)","v":0},{"$f":"SUMIFS(cash[مبلغ],cash[TYP],2,cash[حساب],B73)","v":0},0,{"$f":"SUMIFS(vam[مبلغ وام],vam[حساب],B73)","v":0},{"$f":"SUMIFS(vam[سود وام],vam[حساب],B73)","v":0},{"$f":"SUMIFS(ghest[مبلغ پرداخته],ghest[حساب],B73)","v":0},0]
[null,null,null,null,null,null,{"$f":"SUMIFS(cash[مبلغ],cash[TYP],1,cash[حساب],B74)","v":0},{"$f":"SUMIFS(cash[مبلغ],cash[TYP],2,cash[حساب],B74)","v":0},0,{"$f":"SUMIFS(vam[مبلغ وام],vam[حساب],B74)","v":0},{"$f":"SUMIFS(vam[سود وام],vam[حساب],B74)","v":0},{"$f":"SUMIFS(ghest[مبلغ پرداخته],ghest[حساب],B74)","v":0},0]
[null,null,null,null,null,null,{"$f":"SUMIFS(cash[مبلغ],cash[TYP],1,cash[حساب],B75)","v":0},{"$f":"SUMIFS(cash[مبلغ],cash[TYP],2,cash[حساب],B75)","v":0},0,{"$f":"SUMIFS(vam[مبلغ وام],vam[حساب],B75)","v":0},{"$f":"SUMIFS(vam[سود وام],vam[حساب],B75)","v":0},{"$f":"SUMIFS(ghest[مبلغ پرداخته],ghest[حساب],B75)","v":0},0]
[null,null,null,null,null,null,{"$f":"SUMIFS(cash[مبلغ],cash[TYP],1,cash[حساب],B76)","v":0},{"$f":"SUMIFS(cash[مبلغ],cash[TYP],2,cash[حساب],B76)","v":0},0,{"$f":"SUMIFS(vam[مبلغ وام],vam[حساب],B76)","v":0},{"$f":"SUMIFS(vam[سود وام],vam[حساب],B76)","v":0},{"$f":"SUMIFS(ghest[مبلغ پرداخته],ghest[حساب],B76)","v":0},0]
[null,null,null,null,null,null,{"$f":"SUMIFS(cash[مبلغ],cash[TYP],1,cash[حساب],B77)","v":0},{"$f":"SUMIFS(cash[مبلغ],cash[TYP],2,cash[حساب],B77)","v":0},0,{"$f":"SUMIFS(vam[مبلغ وام],vam[حساب],B77)","v":0},{"$f":"SUMIFS(vam[سود وام],vam[حساب],B77)","v":0},{"$f":"SUMIFS(ghest[مبلغ پرداخته],ghest[حساب],B77)","v":0},0]
[null,null,null,null,null,null,{"$f":"SUMIFS(cash[مبلغ],cash[TYP],1,cash[حساب],B78)","v":0},{"$f":"SUMIFS(cash[مبلغ],cash[TYP],2,cash[حساب],B78)","v":0},0,{"$f":"SUMIFS(vam[مبلغ وام],vam[حساب],B78)","v":0},{"$f":"SUMIFS(vam[سود وام],vam[حساب],B78)","v":0},{"$f":"SUMIFS(ghest[مبلغ پرداخته],ghest[حساب],B78)","v":0},0]
[null,null,null,null,null,null,{"$f":"SUMIFS(cash[مبلغ],cash[TYP],1,cash[حساب],B79)","v":0},{"$f":"SUMIFS(cash[مبلغ],cash[TYP],2,cash[حساب],B79)","v":0},0,{"$f":"SUMIFS(vam[مبلغ وام],vam[حساب],B79)","v":0},{"$f":"SUMIFS(vam[سود وام],vam[حساب],B79)","v":0},{"$f":"SUMIFS(ghest[مبلغ پرداخته],ghest[حساب],B79)","v":0},0]
[null,null,null,null,null,null,{"$f":"SUMIFS(cash[مبلغ],cash[TYP],1,cash[حساب],B80)","v":0},{"$f":"SUMIFS(cash[مبلغ],cash[TYP],2,cash[حساب],B80)","v":0},0,{"$f":"SUMIFS(vam[مبلغ وام],vam[حساب],B80)","v":0},{"$f":"SUMIFS(vam[سود وام],vam[حساب],B80)","v":0},{"$f":"SUMIFS(ghest[مبلغ پرداخته],ghest[حساب],B80)","v":0},0]
[null,null,null,null,null,null,{"$f":"SUMIFS(cash[مبلغ],cash[TYP],1,cash[حساب],B81)","v":0},{"$f":"SUMIFS(cash[مبلغ],cash[TYP],2,cash[حساب],B81)","v":0},0,{"$f":"SUMIFS(vam[مبلغ وام],vam[حساب],B81)","v":0},{"$f":"SUMIFS(vam[سود وام],vam[حساب],B81)","v":0},{"$f":"SUMIFS(ghest[مبلغ پرداخته],ghest[حساب],B81)","v":0},0]
[null,null,null,null,null,null,{"$f":"SUMIFS(cash[مبلغ],cash[TYP],1,cash[حساب],B82)","v":0},{"$f":"SUMIFS(cash[مبلغ],cash[TYP],2,cash[حساب],B82)","v":0},0,{"$f":"SUMIFS(vam[مبلغ وام],vam[حساب],B82)","v":0},{"$f":"SUMIFS(vam[سود وام],vam[حساب],B82)","v":0},{"$f":"SUMIFS(ghest[مبلغ پرداخته],ghest[حساب],B82)","v":0},0]
[null,null,null,null,null,null,{"$f":"SUMIFS(cash[مبلغ],cash[TYP],1,cash[حساب],B83)","v":0},{"$f":"SUMIFS(cash[مبلغ],cash[TYP],2,cash[حساب],B83)","v":0},0,{"$f":"SUMIFS(vam[مبلغ وام],vam[حساب],B83)","v":0},{"$f":"SUMIFS(vam[سود وام],vam[حساب],B83)","v":0},{"$f":"SUMIFS(ghest[مبلغ پرداخته],ghest[حساب],B83)","v":0},0]
[null,null,null,null,null,null,{"$f":"SUMIFS(cash[مبلغ],cash[TYP],1,cash[حساب],B84)","v":0},{"$f":"SUMIFS(cash[مبلغ],cash[TYP],2,cash[حساب],B84)","v":0},0,{"$f":"SUMIFS(vam[مبلغ وام],vam[حساب],B84)","v":0},{"$f":"SUMIFS(vam[سود وام],vam[حساب],B84)","v":0},{"$f":"SUMIFS(ghest[مبلغ پرداخته],ghest[حساب],B84)","v":0},0]
[null,null,null,null,null,null,{"$f":"SUMIFS(cash[مبلغ],cash[TYP],1,cash[حساب],B85)","v":0},{"$f":"SUMIFS(cash[مبلغ],cash[TYP],2,cash[حساب],B85)","v":0},0,{"$f":"SUMIFS(vam[مبلغ وام],vam[حساب],B85)","v":0},{"$f":"SUMIFS(vam[سود وام],vam[حساب],B85)","v":0},{"$f":"SUMIFS(ghest[مبلغ پرداخته],ghest[حساب],B85)","v":0},0]
[null,null,null,null,null,null,{"$f":"SUMIFS(cash[مبلغ],cash[TYP],1,cash[حساب],B86)","v":0},{"$f":"SUMIFS(cash[مبلغ],cash[TYP],2,cash[حساب],B86)","v":0},0,{"$f":"SUMIFS(vam[مبلغ وام],vam[حساب],B86)","v":0},{"$f":"SUMIFS(vam[سود وام],vam[حساب],B86)","v":0},{"$f":"SUMIFS(ghest[مبلغ پرداخته],ghest[حساب],B86)","v":0},0]
[null,null,null,null,null,null,{"$f":"SUMIFS(cash[مبلغ],cash[TYP],1,cash[حساب],B87)","v":0},{"$f":"SUMIFS(cash[مبلغ],cash[TYP],2,cash[حساب],B87)","v":0},0,{"$f":"SUMIFS(vam[مبلغ وام],vam[حساب],B87)","v":0},{"$f":"SUMIFS(vam[سود وام],vam[حساب],B87)","v":0},{"$f":"SUMIFS(ghest[مبلغ پرداخته],ghest[حساب],B87)","v":0},0]
[null,null,null,null,null,null,{"$f":"SUMIFS(cash[مبلغ],cash[TYP],1,cash[حساب],B88)","v":0},{"$f":"SUMIFS(cash[مبلغ],cash[TYP],2,cash[حساب],B88)","v":0},0,{"$f":"SUMIFS(vam[مبلغ وام],vam[حساب],B88)","v":0},{"$f":"SUMIFS(vam[سود وام],vam[حساب],B88)","v":0},{"$f":"SUMIFS(ghest[مبلغ پرداخته],ghest[حساب],B88)","v":0},0]
[null,null,null,null,null,null,{"$f":"SUMIFS(cash[مبلغ],cash[TYP],1,cash[حساب],B89)","v":0},{"$f":"SUMIFS(cash[مبلغ],cash[TYP],2,cash[حساب],B89)","v":0},0,{"$f":"SUMIFS(vam[مبلغ وام],vam[حساب],B89)","v":0},{"$f":"SUMIFS(vam[سود وام],vam[حساب],B89)","v":0},{"$f":"SUMIFS(ghest[مبلغ پرداخته],ghest[حساب],B89)","v":0},0]
[null,null,null,null,null,null,{"$f":"SUMIFS(cash[مبلغ],cash[TYP],1,cash[حساب],B90)","v":0},{"$f":"SUMIFS(cash[مبلغ],cash[TYP],2,cash[حساب],B90)","v":0},0,{"$f":"SUMIFS(vam[مبلغ وام],vam[حساب],B90)","v":0},{"$f":"SUMIFS(vam[سود وام],vam[حساب],B90)","v":0},{"$f":"SUMIFS(ghest[مبلغ پرداخته],ghest[حساب],B90)","v":0},0]
[null,null,null,null,null,null,{"$f":"SUMIFS(cash[مبلغ],cash[TYP],1,cash[حساب],B91)","v":0},{"$f":"SUMIFS(cash[مبلغ],cash[TYP],2,cash[حساب],B91)","v":0},0,{"$f":"SUMIFS(vam[مبلغ وام],vam[حساب],B91)","v":0},{"$f":"SUMIFS(vam[سود وام],vam[حساب],B91)","v":0},{"$f":"SUMIFS(ghest[مبلغ پرداخته],ghest[حساب],B91)","v":0},0]
[null,null,null,null,null,null,{"$f":"SUMIFS(cash[مبلغ],cash[TYP],1,cash[حساب],B92)","v":0},{"$f":"SUMIFS(cash[مبلغ],cash[TYP],2,cash[حساب],B92)","v":0},0,{"$f":"SUMIFS(vam[مبلغ وام],vam[حساب],B92)","v":0},{"$f":"SUMIFS(vam[سود وام],vam[حساب],B92)","v":0},{"$f":"SUMIFS(ghest[مبلغ پرداخته],ghest[حساب],B92)","v":0},0]
[null,null,null,null,null,null,{"$f":"SUMIFS(cash[مبلغ],cash[TYP],1,cash[حساب],B93)","v":0},{"$f":"SUMIFS(cash[مبلغ],cash[TYP],2,cash[حساب],B93)","v":0},0,{"$f":"SUMIFS(vam[مبلغ وام],vam[حساب],B93)","v":0},{"$f":"SUMIFS(vam[سود وام],vam[حساب],B93)","v":0},{"$f":"SUMIFS(ghest[مبلغ پرداخته],ghest[حساب],B93)","v":0},0]
[null,null,null,null,null,null,{"$f":"SUMIFS(cash[مبلغ],cash[TYP],1,cash[حساب],B94)","v":0},{"$f":"SUMIFS(cash[مبلغ],cash[TYP],2,cash[حساب],B94)","v":0},0,{"$f":"SUMIFS(vam[مبلغ وام],vam[حساب],B94)","v":0},{"$f":"SUMIFS(vam[سود وام],vam[حساب],B94)","v":0},{"$f":"SUMIFS(ghest[مبلغ پرداخته],ghest[حساب],B94)","v":0},0]
[null,null,null,null,null,null,{"$f":"SUMIFS(cash[مبلغ],cash[TYP],1,cash[حساب],B95)","v":0},{"$f":"SUMIFS(cash[مبلغ],cash[TYP],2,cash[حساب],B95)","v":0},0,{"$f":"SUMIFS(vam[مبلغ وام],vam[حساب],B95)","v":0},{"$f":"SUMIFS(vam[سود وام],vam[حساب],B95)","v":0},{"$f":"SUMIFS(ghest[مبلغ پرداخته],ghest[حساب],B95)","v":0},0]
[null,null,null,null,null,null,{"$f":"SUMIFS(cash[مبلغ],cash[TYP],1,cash[حساب],B96)","v":0},{"$f":"SUMIFS(cash[مبلغ],cash[TYP],2,cash[حساب],B96)","v":0},0,{"$f":"SUMIFS(vam[مبلغ وام],vam[حساب],B96)","v":0},{"$f":"SUMIFS(vam[سود وام],vam[حساب],B96)","v":0},{"$f":"SUMIFS(ghest[مبلغ پرداخته],ghest[حساب],B96)","v":0},0]
[null,null,null,null,null,null,{"$f":"SUMIFS(cash[مبلغ],cash[TYP],1,cash[حساب],B97)","v":0},{"$f":"SUMIFS(cash[مبلغ],cash[TYP],2,cash[حساب],B97)","v":0},0,{"$f":"SUMIFS(vam[مبلغ وام],vam[حساب],B97)","v":0},{"$f":"SUMIFS(vam[سود وام],vam[حساب],B97)","v":0},{"$f":"SUMIFS(ghest[مبلغ پرداخته],ghest[حساب],B97)","v":0},0]
[null,null,null,null,null,null,{"$f":"SUMIFS(cash[مبلغ],cash[TYP],1,cash[حساب],B98)","v":0},{"$f":"SUMIFS(cash[مبلغ],cash[TYP],2,cash[حساب],B98)","v":0},0,{"$f":"SUMIFS(vam[مبلغ وام],vam[حساب],B98)","v":0},{"$f":"SUMIFS(vam[سود وام],vam[حساب],B98)","v":0},{"$f":"SUMIFS(ghest[مبلغ پرداخته],ghest[حساب],B98)","v":0},0]
[null,null,null,null,null,null,{"$f":"SUMIFS(cash[مبلغ],cash[TYP],1,cash[حساب],B99)","v":0},{"$f":"SUMIFS(cash[مبلغ],cash[TYP],2,cash[حساب],B99)","v":0},0,{"$f":"SUMIFS(vam[مبلغ وام],vam[حساب],B99)","v":0},{"$f":"SUMIFS(vam[سود وام],vam[حساب],B99)","v":0},{"$f":"SUMIFS(ghest[مبلغ پرداخته],ghest[حساب],B99)","v":0},0]
[null,null,null,null,null,null,{"$f":"SUMIFS(cash[مبلغ],cash[TYP],1,cash[حساب],B100)","v":0},{"$f":"SUMIFS(cash[مبلغ],cash[TYP],2,cash[حساب],B100)","v":0},0,{"$f":"SUMIFS(vam[مبلغ وام],vam[حساب],B100)","v":0},{"$f":"SUMIFS(vam[سود وام],vam[حساب],B100)","v":0},{"$f":"SUMIFS(ghest[مبلغ پرداخته],ghest[حساب],B100)","v":0},0]
[null,null,null,null,null,null,{"$f":"SUMIFS(cash[مبلغ],cash[TYP],1,cash[حساب],B101)","v":0},{"$f":"SUMIFS(cash[مبلغ],cash[TYP],2,cash[حساب],B101)","v":0},0,{"$f":"SUMIFS(vam[مبلغ وام],vam[حساب],B101)","v":0},{"$f":"SUMIFS(vam[سود وام],vam[حساب],B101)","v":0},{"$f":"SUMIFS(ghest[مبلغ پرداخته],ghest[حساب],B101)","v":0},0]
[null,null,null,null,null,null,{"$f":"SUMIFS(cash[مبلغ],cash[TYP],1,cash[حساب],B102)","v":0},{"$f":"SUMIFS(cash[مبلغ],cash[TYP],2,cash[حساب],B102)","v":0},0,{"$f":"SUMIFS(vam[مبلغ وام],vam[حساب],B102)","v":0},{"$f":"SUMIFS(vam[سود وام],vam[حساب],B102)","v":0},{"$f":"SUMIFS(ghest[مبلغ پرداخته],ghest[حساب],B102)","v":0},0]
[null,null,null,null,null,null,{"$f":"SUMIFS(cash[مبلغ],cash[TYP],1,cash[حساب],B103)","v":0},{"$f":"SUMIFS(cash[مبلغ],cash[TYP],2,cash[حساب],B103)","v":0},{"$f":"F103+G103-H103","v":0},{"$f":"SUMIFS(vam[مبلغ وام],vam[حساب],B103)","v":0},{"$f":"SUMIFS(vam[سود وام],vam[حساب],B103)","v":0},{"$f":"SUMIFS(ghest[مبلغ پرداخته],ghest[حساب],B103)","v":0},{"$f":"J103+K103-L103","v":0}]
[null,null,null,null,null,null,{"$f":"SUMIFS(cash[مبلغ],cash[TYP],1,cash[حساب],B104)","v":0},{"$f":"SUMIFS(cash[مبلغ],cash[TYP],2,cash[حساب],B104)","v":0},0,{"$f":"SUMIFS(vam[مبلغ وام],vam[حساب],B104)","v":0},{"$f":"SUMIFS(vam[سود وام],vam[حساب],B104)","v":0},{"$f":"SUMIFS(ghest[مبلغ پرداخته],ghest[حساب],B104)","v":0},0]
[null,null,null,null,null,null,{"$f":"SUMIFS(cash[مبلغ],cash[TYP],1,cash[حساب],B105)","v":0},{"$f":"SUMIFS(cash[مبلغ],cash[TYP],2,cash[حساب],B105)","v":0},0,{"$f":"SUMIFS(vam[مبلغ وام],vam[حساب],B105)","v":0},{"$f":"SUMIFS(vam[سود وام],vam[حساب],B105)","v":0},{"$f":"SUMIFS(ghest[مبلغ پرداخته],ghest[حساب],B105)","v":0},0]
[null,null,null,null,null,null,{"$f":"SUMIFS(cash[مبلغ],cash[TYP],1,cash[حساب],B106)","v":0},{"$f":"SUMIFS(cash[مبلغ],cash[TYP],2,cash[حساب],B106)","v":0},0,{"$f":"SUMIFS(vam[مبلغ وام],vam[حساب],B106)","v":0},{"$f":"SUMIFS(vam[سود وام],vam[حساب],B106)","v":0},{"$f":"SUMIFS(ghest[مبلغ پرداخته],ghest[حساب],B106)","v":0},0]
[null,null,null,null,null,null,{"$f":"SUMIFS(cash[مبلغ],cash[TYP],1,cash[حساب],B107)","v":0},{"$f":"SUMIFS(cash[مبلغ],cash[TYP],2,cash[حساب],B107)","v":0},0,{"$f":"SUMIFS(vam[مبلغ وام],vam[حساب],B107)","v":0},{"$f":"SUMIFS(vam[سود وام],vam[حساب],B107)","v":0},{"$f":"SUMIFS(ghest[مبلغ پرداخته],ghest[حساب],B107)","v":0},0]
[null,null,null,null,null,null,{"$f":"SUMIFS(cash[مبلغ],cash[TYP],1,cash[حساب],B108)","v":0},{"$f":"SUMIFS(cash[مبلغ],cash[TYP],2,cash[حساب],B108)","v":0},0,{"$f":"SUMIFS(vam[مبلغ وام],vam[حساب],B108)","v":0},{"$f":"SUMIFS(vam[سود وام],vam[حساب],B108)","v":0},{"$f":"SUMIFS(ghest[مبلغ پرداخته],ghest[حساب],B108)","v":0},0]
[null,null,null,null,null,null,{"$f":"SUMIFS(cash[مبلغ],cash[TYP],1,cash[حساب],B109)","v":0},{"$f":"SUMIFS(cash[مبلغ],cash[TYP],2,cash[حساب],B109)","v":0},0,{"$f":"SUMIFS(vam[مبلغ وام],vam[حساب],B109)","v":0},{"$f":"SUMIFS(vam[سود وام],vam[حساب],B109)","v":0},{"$f":"SUMIFS(ghest[مبلغ پرداخته],ghest[حساب],B109)","v":0},0]
[null,null,null,null,null,null,{"$f":"SUMIFS(cash[مبلغ],cash[TYP],1,cash[حساب],B110)","v":0},{"$f":"SUMIFS(cash[مبلغ],cash[TYP],2,cash[حساب],B110)","v":0},0,{"$f":"SUMIFS(vam[مبلغ وام],vam[حساب],B110)","v":0},{"$f":"SUMIFS(vam[سود وام],vam[حساب],B110)","v":0},{"$f":"SUMIFS(ghest[مبلغ پرداخته],ghest[حساب],B110)","v":0},0]
[null,null,null,null,null,null,{"$f":"SUMIFS(cash[مبلغ],cash[TYP],1,cash[حساب],B111)","v":0},{"$f":"SUMIFS(cash[مبلغ],cash[TYP],2,cash[حساب],B111)","v":0},0,{"$f":"SUMIFS(vam[مبلغ وام],vam[حساب],B111)","v":0},{"$f":"SUMIFS(vam[سود وام],vam[حساب],B111)","v":0},{"$f":"SUMIFS(ghest[مبلغ پرداخته],ghest[حساب],B111)","v":0},0]
[null,null,null,null,null,null,{"$f":"SUMIFS(cash[مبلغ],cash[TYP],1,cash[حساب],B112)","v":0},{"$f":"SUMIFS(cash[مبلغ],cash[TYP],2,cash[حساب],B112)","v":0},0,{"$f":"SUMIFS(vam[مبلغ وام],vam[حساب],B112)","v":0},{"$f":"SUMIFS(vam[سود وام],vam[حساب],B112)","v":0},{"$f":"SUMIFS(ghest[مبلغ پرداخته],ghest[حساب],B112)","v":0},0]
[null,null,null,null,null,null,{"$f":"SUMIFS(cash[مبلغ],cash[TYP],1,cash[حساب],B113)","v":0},{"$f":"SUMIFS(cash[مبلغ],cash[TYP],2,cash[حساب],B113)","v":0},0,{"$f":"SUMIFS(vam[مبلغ وام],vam[حساب],B113)","v":0},{"$f":"SUMIFS(vam[سود وام],vam[حساب],B113)","v":0},{"$f":"SUMIFS(ghest[مبلغ پرداخته],ghest[حساب],B113)","v":0},0]
[null,null,null,null,null,null,{"$f":"SUMIFS(cash[مبلغ],cash[TYP],1,cash[حساب],B114)","v":0},{"$f":"SUMIFS(cash[مبلغ],cash[TYP],2,cash[حساب],B114)","v":0},0,{"$f":"SUMIFS(vam[مبلغ وام],vam[حساب],B114)","v":0},{"$f":"SUMIFS(vam[سود وام],vam[حساب],B114)","v":0},{"$f":"SUMIFS(ghest[مبلغ پرداخته],ghest[حساب],B114)","v":0},0]
[null,null,null,null,null,null,{"$f":"SUMIFS(cash[مبلغ],cash[TYP],1,cash[حساب],B115)","v":0},{"$f":"SUMIFS(cash[مبلغ],cash[TYP],2,cash[حساب],B115)","v":0},0,{"$f":"SUMIFS(vam[مبلغ وام],vam[حساب],B115)","v":0},{"$f":"SUMIFS(vam[سود وام],vam[حساب],B115)","v":0},{"$f":"SUMIFS(ghest[مبلغ پرداخته],ghest[حساب],B115)","v":0},0]
[null,null,null,null,null,null,{"$f":"SUMIFS(cash[مبلغ],cash[TYP],1,cash[حساب],B116)","v":0},{"$f":"SUMIFS(cash[مبلغ],cash[TYP],2,cash[حساب],B116)","v":0},0,{"$f":"SUMIFS(vam[مبلغ وام],vam[حساب],B116)","v":0},{"$f":"SUMIFS(vam[سود وام],vam[حساب],B116)","v":0},{"$f":"SUMIFS(ghest[مبلغ پرداخته],ghest[حساب],B116)","v":0},0]
[null,null,null,null,null,null,{"$f":"SUMIFS(cash[مبلغ],cash[TYP],1,cash[حساب],B117)","v":0},{"$f":"SUMIFS(cash[مبلغ],cash[TYP],2,cash[حساب],B117)","v":0},0,{"$f":"SUMIFS(vam[مبلغ وام],vam[حساب],B117)","v":0},{"$f":"SUMIFS(vam[سود وام],vam[حساب],B117)","v":0},{"$f":"SUMIFS(ghest[مبلغ پرداخته],ghest[حساب],B117)","v":0},0]
[null,null,null,null,null,null,{"$f":"SUMIFS(cash[مبلغ],cash[TYP],1,cash[حساب],B118)","v":0},{"$f":"SUMIFS(cash[مبلغ],cash[TYP],2,cash[حساب],B118)","v":0},0,{"$f":"SUMIFS(vam[مبلغ وام],vam[حساب],B118)","v":0},{"$f":"SUMIFS(vam[سود وام],vam[حساب],B118)","v":0},{"$f":"SUMIFS(ghest[مبلغ پرداخته],ghest[حساب],B118)","v":0},0]
[null,null,null,null,null,null,{"$f":"SUMIFS(cash[مبلغ],cash[TYP],1,cash[حساب],B119)","v":0},{"$f":"SUMIFS(cash[مبلغ],cash[TYP],2,cash[حساب],B119)","v":0},0,{"$f":"SUMIFS(vam[مبلغ وام],vam[حساب],B119)","v":0},{"$f":"SUMIFS(vam[سود وام],vam[حساب],B119)","v":0},{"$f":"SUMIFS(ghest[مبلغ پرداخته],ghest[حساب],B119)","v":0},0]
[null,null,null,null,null,null,{"$f":"SUMIFS(cash[مبلغ],cash[TYP],1,cash[حساب],B120)","v":0},{"$f":"SUMIFS(cash[مبلغ],cash[TYP],2,cash[حساب],B120)","v":0},0,{"$f":"SUMIFS(vam[مبلغ وام],vam[حساب],B120)","v":0},{"$f":"SUMIFS(vam[سود وام],vam[حساب],B120)","v":0},{"$f":"SUMIFS(ghest[مبلغ پرداخته],ghest[حساب],B120)","v":0},0]
[null,null,null,null,null,null,{"$f":"SUMIFS(cash[مبلغ],cash[TYP],1,cash[حساب],B121)","v":0},{"$f":"SUMIFS(cash[مبلغ],cash[TYP],2,cash[حساب],B121)","v":0},0,{"$f":"SUMIFS(vam[مبلغ وام],vam[حساب],B121)","v":0},{"$f":"SUMIFS(vam[سود وام],vam[حساب],B121)","v":0},{"$f":"SUMIFS(ghest[مبلغ پرداخته],ghest[حساب],B121)","v":0},0]
[null,null,null,null,null,null,{"$f":"SUMIFS(cash[مبلغ],cash[TYP],1,cash[حساب],B122)","v":0},{"$f":"SUMIFS(cash[مبلغ],cash[TYP],2,cash[حساب],B122)","v":0},0,{"$f":"SUMIFS(vam[مبلغ وام],vam[حساب],B122)","v":0},{"$f":"SUMIFS(vam[سود وام],vam[حساب],B122)","v":0},{"$f":"SUMIFS(ghest[مبلغ پرداخته],ghest[حساب],B122)","v":0},0]
[null,null,null,null,null,null,{"$f":"SUMIFS(cash[مبلغ],cash[TYP],1,cash[حساب],B123)","v":0},{"$f":"SUMIFS(cash[مبلغ],cash[TYP],2,cash[حساب],B123)","v":0},0,{"$f":"SUMIFS(vam[مبلغ وام],vam[حساب],B123)","v":0},{"$f":"SUMIFS(vam[سود وام],vam[حساب],B123)","v":0},{"$f":"SUMIFS(ghest[مبلغ پرداخته],ghest[حساب],B123)","v":0},0]
[null,null,null,null,null,null,{"$f":"SUMIFS(cash[مبلغ],cash[TYP],1,cash[حساب],B124)","v":0},{"$f":"SUMIFS(cash[مبلغ],cash[TYP],2,cash[حساب],B124)","v":0},0,{"$f":"SUMIFS(vam[مبلغ وام],vam[حساب],B124)","v":0},{"$f":"SUMIFS(vam[سود وام],vam[حساب],B124)","v":0},{"$f":"SUMIFS(ghest[مبلغ پرداخته],ghest[حساب],B124)","v":0},0]
[null,null,null,null,null,null,{"$f":"SUMIFS(cash[مبلغ],cash[TYP],1,cash[حساب],B125)","v":0},{"$f":"SUMIFS(cash[مبلغ],cash[TYP],2,cash[حساب],B125)","v":0},0,{"$f":"SUMIFS(vam[مبلغ وام],vam[حساب],B125)","v":0},{"$f":"SUMIFS(vam[سود وام],vam[حساب],B125)","v":0},{"$f":"SUMIFS(ghest[مبلغ پرداخته],ghest[حساب],B125)","v":0},0]
[null,null,null,null,null,null,{"$f":"SUMIFS(cash[مبلغ],cash[TYP],1,cash[حساب],B126)","v":0},{"$f":"SUMIFS(cash[مبلغ],cash[TYP],2,cash[حساب],B126)","v":0},0,{"$f":"SUMIFS(vam[مبلغ وام],vam[حساب],B126)","v":0},{"$f":"SUMIFS(vam[سود وام],vam[حساب],B126)","v":0},{"$f":"SUMIFS(ghest[مبلغ پرداخته],ghest[حساب],B126)","v":0},0]
[null,null,null,null,null,null,{"$f":"SUMIFS(cash[مبلغ],cash[TYP],1,cash[حساب],B127)","v":0},{"$f":"SUMIFS(cash[مبلغ],cash[TYP],2,cash[حساب],B127)","v":0},0,{"$f":"SUMIFS(vam[مبلغ وام],vam[حساب],B127)","v":0},{"$f":"SUMIFS(vam[سود وام],vam[حساب],B127)","v":0},{"$f":"SUMIFS(ghest[مبلغ پرداخته],ghest[حساب],B127)","v":0},0]
[null,null,null,null,null,null,{"$f":"SUMIFS(cash[مبلغ],cash[TYP],1,cash[حساب],B128)","v":0},{"$f":"SUMIFS(cash[مبلغ],cash[TYP],2,cash[حساب],B128)","v":0},0,{"$f":"SUMIFS(vam[مبلغ وام],vam[حساب],B128)","v":0},{"$f":"SUMIFS(vam[سود وام],vam[حساب],B128)","v":0},{"$f":"SUMIFS(ghest[مبلغ پرداخته],ghest[حساب],B128)","v":0},0]
[null,null,null,null,null,null,{"$f":"SUMIFS(cash[مبلغ],cash[TYP],1,cash[حساب],B129)","v":0},{"$f":"SUMIFS(cash[مبلغ],cash[TYP],2,cash[حساب],B129)","v":0},0,{"$f":"SUMIFS(vam[مبلغ وام],vam[حساب],B129)","v":0},{"$f":"SUMIFS(vam[سود وام],vam[حساب],B129)","v":0},{"$f":"SUMIFS(ghest[مبلغ پرداخته],ghest[حساب],B129)","v":0},0]
[null,null,null,null,null,null,{"$f":"SUMIFS(cash[مبلغ],cash[TYP],1,cash[حساب],B130)","v":0},{"$f":"SUMIFS(cash[مبلغ],cash[TYP],2,cash[حساب],B130)","v":0},0,{"$f":"SUMIFS(vam[مبلغ وام],vam[حساب],B130)","v":0},{"$f":"SUMIFS(vam[سود وام],vam[حساب],B130)","v":0},{"$f":"SUMIFS(ghest[مبلغ پرداخته],ghest[حساب],B130)","v":0},0]
[null,null,null,null,null,null,{"$f":"SUMIFS(cash[مبلغ],cash[TYP],1,cash[حساب],B131)","v":0},{"$f":"SUMIFS(cash[مبلغ],cash[TYP],2,cash[حساب],B131)","v":0},0,{"$f":"SUMIFS(vam[مبلغ وام],vam[حساب],B131)","v":0},{"$f":"SUMIFS(vam[سود وام],vam[حساب],B131)","v":0},{"$f":"SUMIFS(ghest[مبلغ پرداخته],ghest[حساب],B131)","v":0},0]
[null,null,null,null,null,null,{"$f":"SUMIFS(cash[مبلغ],cash[TYP],1,cash[حساب],B132)","v":0},{"$f":"SUMIFS(cash[مبلغ],cash[TYP],2,cash[حساب],B132)","v":0},0,{"$f":"SUMIFS(vam[مبلغ وام],vam[حساب],B132)","v":0},{"$f":"SUMIFS(vam[سود وام],vam[حساب],B132)","v":0},{"$f":"SUMIFS(ghest[مبلغ پرداخته],ghest[حساب],B132)","v":0},0]
[null,null,null,null,null,null,{"$f":"SUMIFS(cash[مبلغ],cash[TYP],1,cash[حساب],B133)","v":0},{"$f":"SUMIFS(cash[مبلغ],cash[TYP],2,cash[حساب],B133)","v":0},0,{"$f":"SUMIFS(vam[مبلغ وام],vam[حساب],B133)","v":0},{"$f":"SUMIFS(vam[سود وام],vam[حساب],B133)","v":0},{"$f":"SUMIFS(ghest[مبلغ پرداخته],ghest[حساب],B133)","v":0},0]
[null,null,null,null,null,null,{"$f":"SUMIFS(cash[مبلغ],cash[TYP],1,cash[حساب],B134)","v":0},{"$f":"SUMIFS(cash[مبلغ],cash[TYP],2,cash[حساب],B134)","v":0},0,{"$f":"SUMIFS(vam[مبلغ وام],vam[حساب],B134)","v":0},{"$f":"SUMIFS(vam[سود وام],vam[حساب],B134)","v":0},{"$f":"SUMIFS(ghest[مبلغ پرداخته],ghest[حساب],B134)","v":0},0]
[null,null,null,null,null,null,{"$f":"SUMIFS(cash[مبلغ],cash[TYP],1,cash[حساب],B135)","v":0},{"$f":"SUMIFS(cash[مبلغ],cash[TYP],2,cash[حساب],B135)","v":0},{"$f":"F135+G135-H135","v":0},{"$f":"SUMIFS(vam[مبلغ وام],vam[حساب],B135)","v":0},{"$f":"SUMIFS(vam[سود وام],vam[حساب],B135)","v":0},{"$f":"SUMIFS(ghest[مبلغ پرداخته],ghest[حساب],B135)","v":0},{"$f":"J135+K135-L135","v":0}]
[null,null,null,null,null,null,{"$f":"SUMIFS(cash[مبلغ],cash[TYP],1,cash[حساب],B136)","v":0},{"$f":"SUMIFS(cash[مبلغ],cash[TYP],2,cash[حساب],B136)","v":0},0,{"$f":"SUMIFS(vam[مبلغ وام],vam[حساب],B136)","v":0},{"$f":"SUMIFS(vam[سود وام],vam[حساب],B136)","v":0},{"$f":"SUMIFS(ghest[مبلغ پرداخته],ghest[حساب],B136)","v":0},0]
[null,null,null,null,null,null,{"$f":"SUMIFS(cash[مبلغ],cash[TYP],1,cash[حساب],B137)","v":0},{"$f":"SUMIFS(cash[مبلغ],cash[TYP],2,cash[حساب],B137)","v":0},0,{"$f":"SUMIFS(vam[مبلغ وام],vam[حساب],B137)","v":0},{"$f":"SUMIFS(vam[سود وام],vam[حساب],B137)","v":0},{"$f":"SUMIFS(ghest[مبلغ پرداخته],ghest[حساب],B137)","v":0},0]
[null,null,null,null,null,null,{"$f":"SUMIFS(cash[مبلغ],cash[TYP],1,cash[حساب],B138)","v":0},{"$f":"SUMIFS(cash[مبلغ],cash[TYP],2,cash[حساب],B138)","v":0},0,{"$f":"SUMIFS(vam[مبلغ وام],vam[حساب],B138)","v":0},{"$f":"SUMIFS(vam[سود وام],vam[حساب],B138)","v":0},{"$f":"SUMIFS(ghest[مبلغ پرداخته],ghest[حساب],B138)","v":0},0]
[null,null,null,null,null,null,{"$f":"SUMIFS(cash[مبلغ],cash[TYP],1,cash[حساب],B139)","v":0},{"$f":"SUMIFS(cash[مبلغ],cash[TYP],2,cash[حساب],B139)","v":0},0,{"$f":"SUMIFS(vam[مبلغ وام],vam[حساب],B139)","v":0},{"$f":"SUMIFS(vam[سود وام],vam[حساب],B139)","v":0},{"$f":"SUMIFS(ghest[مبلغ پرداخته],ghest[حساب],B139)","v":0},0]
[null,null,null,null,null,null,{"$f":"SUMIFS(cash[مبلغ],cash[TYP],1,cash[حساب],B140)","v":0},{"$f":"SUMIFS(cash[مبلغ],cash[TYP],2,cash[حساب],B140)","v":0},0,{"$f":"SUMIFS(vam[مبلغ وام],vam[حساب],B140)","v":0},{"$f":"SUMIFS(vam[سود وام],vam[حساب],B140)","v":0},{"$f":"SUMIFS(ghest[مبلغ پرداخته],ghest[حساب],B140)","v":0},0]
[null,null,null,null,null,null,{"$f":"SUMIFS(cash[مبلغ],cash[TYP],1,cash[حساب],B141)","v":0},{"$f":"SUMIFS(cash[مبلغ],cash[TYP],2,cash[حساب],B141)","v":0},0,{"$f":"SUMIFS(vam[مبلغ وام],vam[حساب],B141)","v":0},{"$f":"SUMIFS(vam[سود وام],vam[حساب],B141)","v":0},{"$f":"SUMIFS(ghest[مبلغ پرداخته],ghest[حساب],B141)","v":0},0]
[null,null,null,null,null,null,{"$f":"SUMIFS(cash[مبلغ],cash[TYP],1,cash[حساب],B142)","v":0},{"$f":"SUMIFS(cash[مبلغ],cash[TYP],2,cash[حساب],B142)","v":0},0,{"$f":"SUMIFS(vam[مبلغ وام],vam[حساب],B142)","v":0},{"$f":"SUMIFS(vam[سود وام],vam[حساب],B142)","v":0},{"$f":"SUMIFS(ghest[مبلغ پرداخته],ghest[حساب],B142)","v":0},0]
[null,null,null,null,null,null,{"$f":"SUMIFS(cash[مبلغ],cash[TYP],1,cash[حساب],B143)","v":0},{"$f":"SUMIFS(cash[مبلغ],cash[TYP],2,cash[حساب],B143)","v":0},0,{"$f":"SUMIFS(vam[مبلغ وام],vam[حساب],B143)","v":0},{"$f":"SUMIFS(vam[سود وام],vam[حساب],B143)","v":0},{"$f":"SUMIFS(ghest[مبلغ پرداخته],ghest[حساب],B143)","v":0},0]
[null,null,null,null,null,null,{"$f":"SUMIFS(cash[مبلغ],cash[TYP],1,cash[حساب],B144)","v":0},{"$f":"SUMIFS(cash[مبلغ],cash[TYP],2,cash[حساب],B144)","v":0},0,{"$f":"SUMIFS(vam[مبلغ وام],vam[حساب],B144)","v":0},{"$f":"SUMIFS(vam[سود وام],vam[حساب],B144)","v":0},{"$f":"SUMIFS(ghest[مبلغ پرداخته],ghest[حساب],B144)","v":0},0]
[null,null,null,null,null,null,{"$f":"SUMIFS(cash[مبلغ],cash[TYP],1,cash[حساب],B145)","v":0},{"$f":"SUMIFS(cash[مبلغ],cash[TYP],2,cash[حساب],B145)","v":0},0,{"$f":"SUMIFS(vam[مبلغ وام],vam[حساب],B145)","v":0},{"$f":"SUMIFS(vam[سود وام],vam[حساب],B145)","v":0},{"$f":"SUMIFS(ghest[مبلغ پرداخته],ghest[حساب],B145)","v":0},0]
[null,null,null,null,null,null,{"$f":"SUMIFS(cash[مبلغ],cash[TYP],1,cash[حساب],B146)","v":0},{"$f":"SUMIFS(cash[مبلغ],cash[TYP],2,cash[حساب],B146)","v":0},0,{"$f":"SUMIFS(vam[مبلغ وام],vam[حساب],B146)","v":0},{"$f":"SUMIFS(vam[سود وام],vam[حساب],B146)","v":0},{"$f":"SUMIFS(ghest[مبلغ پرداخته],ghest[حساب],B146)","v":0},0]
[null,null,null,null,null,null,{"$f":"SUMIFS(cash[مبلغ],cash[TYP],1,cash[حساب],B147)","v":0},{"$f":"SUMIFS(cash[مبلغ],cash[TYP],2,cash[حساب],B147)","v":0},0,{"$f":"SUMIFS(vam[مبلغ وام],vam[حساب],B147)","v":0},{"$f":"SUMIFS(vam[سود وام],vam[حساب],B147)","v":0},{"$f":"SUMIFS(ghest[مبلغ پرداخته],ghest[حساب],B147)","v":0},0]
[null,null,null,null,null,null,{"$f":"SUMIFS(cash[مبلغ],cash[TYP],1,cash[حساب],B148)","v":0},{"$f":"SUMIFS(cash[مبلغ],cash[TYP],2,cash[حساب],B148)","v":0},0,{"$f":"SUMIFS(vam[مبلغ وام],vam[حساب],B148)","v":0},{"$f":"SUMIFS(vam[سود وام],vam[حساب],B148)","v":0},{"$f":"SUMIFS(ghest[مبلغ پرداخته],ghest[حساب],B148)","v":0},0]
[null,null,null,null,null,null,{"$f":"SUMIFS(cash[مبلغ],cash[TYP],1,cash[حساب],B149)","v":0},{"$f":"SUMIFS(cash[مبلغ],cash[TYP],2,cash[حساب],B149)","v":0},0,{"$f":"SUMIFS(vam[مبلغ وام],vam[حساب],B149)","v":0},{"$f":"SUMIFS(vam[سود وام],vam[حساب],B149)","v":0},{"$f":"SUMIFS(ghest[مبلغ پرداخته],ghest[حساب],B149)","v":0},0]
[null,null,null,null,null,null,{"$f":"SUMIFS(cash[مبلغ],cash[TYP],1,cash[حساب],B150)","v":0},{"$f":"SUMIFS(cash[مبلغ],cash[TYP],2,cash[حساب],B150)","v":0},0,{"$f":"SUMIFS(vam[مبلغ وام],vam[حساب],B150)","v":0},{"$f":"SUMIFS(vam[سود وام],vam[حساب],B150)","v":0},{"$f":"SUMIFS(ghest[مبلغ پرداخته],ghest[حساب],B150)","v":0},0]
[null,null,null,null,null,null,{"$f":"SUMIFS(cash[مبلغ],cash[TYP],1,cash[حساب],B151)","v":0},{"$f":"SUMIFS(cash[مبلغ],cash[TYP],2,cash[حساب],B151)","v":0},0,{"$f":"SUMIFS(vam[مبلغ وام],vam[حساب],B151)","v":0},{"$f":"SUMIFS(vam[سود وام],vam[حساب],B151)","v":0},{"$f":"SUMIFS(ghest[مبلغ پرداخته],ghest[حساب],B151)","v":0},0]
[null,null,null,null,null,null,{"$f":"SUMIFS(cash[مبلغ],cash[TYP],1,cash[حساب],B152)","v":0},{"$f":"SUMIFS(cash[مبلغ],cash[TYP],2,cash[حساب],B152)","v":0},0,{"$f":"SUMIFS(vam[مبلغ وام],vam[حساب],B152)","v":0},{"$f":"SUMIFS(vam[سود وام],vam[حساب],B152)","v":0},{"$f":"SUMIFS(ghest[مبلغ پرداخته],ghest[حساب],B152)","v":0},0]
[null,null,null,null,null,null,{"$f":"SUMIFS(cash[مبلغ],cash[TYP],1,cash[حساب],B153)","v":0},{"$f":"SUMIFS(cash[مبلغ],cash[TYP],2,cash[حساب],B153)","v":0},0,{"$f":"SUMIFS(vam[مبلغ وام],vam[حساب],B153)","v":0},{"$f":"SUMIFS(vam[سود وام],vam[حساب],B153)","v":0},{"$f":"SUMIFS(ghest[مبلغ پرداخته],ghest[حساب],B153)","v":0},0]
[null,null,null,null,null,null,{"$f":"SUMIFS(cash[مبلغ],cash[TYP],1,cash[حساب],B154)","v":0},{"$f":"SUMIFS(cash[مبلغ],cash[TYP],2,cash[حساب],B154)","v":0},0,{"$f":"SUMIFS(vam[مبلغ وام],vam[حساب],B154)","v":0},{"$f":"SUMIFS(vam[سود وام],vam[حساب],B154)","v":0},{"$f":"SUMIFS(ghest[مبلغ پرداخته],ghest[حساب],B154)","v":0},0]
[null,null,null,null,null,null,{"$f":"SUMIFS(cash[مبلغ],cash[TYP],1,cash[حساب],B155)","v":0},{"$f":"SUMIFS(cash[مبلغ],cash[TYP],2,cash[حساب],B155)","v":0},0,{"$f":"SUMIFS(vam[مبلغ وام],vam[حساب],B155)","v":0},{"$f":"SUMIFS(vam[سود وام],vam[حساب],B155)","v":0},{"$f":"SUMIFS(ghest[مبلغ پرداخته],ghest[حساب],B155)","v":0},0]
[null,null,null,null,null,null,{"$f":"SUMIFS(cash[مبلغ],cash[TYP],1,cash[حساب],B156)","v":0},{"$f":"SUMIFS(cash[مبلغ],cash[TYP],2,cash[حساب],B156)","v":0},0,{"$f":"SUMIFS(vam[مبلغ وام],vam[حساب],B156)","v":0},{"$f":"SUMIFS(vam[سود وام],vam[حساب],B156)","v":0},{"$f":"SUMIFS(ghest[مبلغ پرداخته],ghest[حساب],B156)","v":0},0]
[null,null,null,null,null,null,{"$f":"SUMIFS(cash[مبلغ],cash[TYP],1,cash[حساب],B157)","v":0},{"$f":"SUMIFS(cash[مبلغ],cash[TYP],2,cash[حساب],B157)","v":0},0,{"$f":"SUMIFS(vam[مبلغ وام],vam[حساب],B157)","v":0},{"$f":"SUMIFS(vam[سود وام],vam[حساب],B157)","v":0},{"$f":"SUMIFS(ghest[مبلغ پرداخته],ghest[حساب],B157)","v":0},0]
[null,null,null,null,null,null,{"$f":"SUMIFS(cash[مبلغ],cash[TYP],1,cash[حساب],B158)","v":0},{"$f":"SUMIFS(cash[مبلغ],cash[TYP],2,cash[حساب],B158)","v":0},0,{"$f":"SUMIFS(vam[مبلغ وام],vam[حساب],B158)","v":0},{"$f":"SUMIFS(vam[سود وام],vam[حساب],B158)","v":0},{"$f":"SUMIFS(ghest[مبلغ پرداخته],ghest[حساب],B158)","v":0},0]
[null,null,null,null,null,null,{"$f":"SUMIFS(cash[مبلغ],cash[TYP],1,cash[حساب],B159)","v":0},{"$f":"SUMIFS(cash[مبلغ],cash[TYP],2,cash[حساب],B159)","v":0},0,{"$f":"SUMIFS(vam[مبلغ وام],vam[حساب],B159)","v":0},{"$f":"SUMIFS(vam[سود وام],vam[حساب],B159)","v":0},{"$f":"SUMIFS(ghest[مبلغ پرداخته],ghest[حساب],B159)","v":0},0]
[null,null,null,null,null,null,{"$f":"SUMIFS(cash[مبلغ],cash[TYP],1,cash[حساب],B160)","v":0},{"$f":"SUMIFS(cash[مبلغ],cash[TYP],2,cash[حساب],B160)","v":0},0,{"$f":"SUMIFS(vam[مبلغ وام],vam[حساب],B160)","v":0},{"$f":"SUMIFS(vam[سود وام],vam[حساب],B160)","v":0},{"$f":"SUMIFS(ghest[مبلغ پرداخته],ghest[حساب],B160)","v":0},0]
[null,null,null,null,null,null,{"$f":"SUMIFS(cash[مبلغ],cash[TYP],1,cash[حساب],B161)","v":0},{"$f":"SUMIFS(cash[مبلغ],cash[TYP],2,cash[حساب],B161)","v":0},0,{"$f":"SUMIFS(vam[مبلغ وام],vam[حساب],B161)","v":0},{"$f":"SUMIFS(vam[سود وام],vam[حساب],B161)","v":0},{"$f":"SUMIFS(ghest[مبلغ پرداخته],ghest[حساب],B161)","v":0},0]
[null,null,null,null,null,null,{"$f":"SUMIFS(cash[مبلغ],cash[TYP],1,cash[حساب],B162)","v":0},{"$f":"SUMIFS(cash[مبلغ],cash[TYP],2,cash[حساب],B162)","v":0},0,{"$f":"SUMIFS(vam[مبلغ وام],vam[حساب],B162)","v":0},{"$f":"SUMIFS(vam[سود وام],vam[حساب],B162)","v":0},{"$f":"SUMIFS(ghest[مبلغ پرداخته],ghest[حساب],B162)","v":0},0]
[null,null,null,null,null,null,{"$f":"SUMIFS(cash[مبلغ],cash[TYP],1,cash[حساب],B163)","v":0},{"$f":"SUMIFS(cash[مبلغ],cash[TYP],2,cash[حساب],B163)","v":0},0,{"$f":"SUMIFS(vam[مبلغ وام],vam[حساب],B163)","v":0},{"$f":"SUMIFS(vam[سود وام],vam[حساب],B163)","v":0},{"$f":"SUMIFS(ghest[مبلغ پرداخته],ghest[حساب],B163)","v":0},0]
[null,null,null,null,null,null,{"$f":"SUMIFS(cash[مبلغ],cash[TYP],1,cash[حساب],B164)","v":0},{"$f":"SUMIFS(cash[مبلغ],cash[TYP],2,cash[حساب],B164)","v":0},0,{"$f":"SUMIFS(vam[مبلغ وام],vam[حساب],B164)","v":0},{"$f":"SUMIFS(vam[سود وام],vam[حساب],B164)","v":0},{"$f":"SUMIFS(ghest[مبلغ پرداخته],ghest[حساب],B164)","v":0},0]
[null,null,null,null,null,null,{"$f":"SUMIFS(cash[مبلغ],cash[TYP],1,cash[حساب],B165)","v":0},{"$f":"SUMIFS(cash[مبلغ],cash[TYP],2,cash[حساب],B165)","v":0},0,{"$f":"SUMIFS(vam[مبلغ وام],vam[حساب],B165)","v":0},{"$f":"SUMIFS(vam[سود وام],vam[حساب],B165)","v":0},{"$f":"SUMIFS(ghest[مبلغ پرداخته],ghest[حساب],B165)","v":0},0]
[null,null,null,null,null,null,{"$f":"SUMIFS(cash[مبلغ],cash[TYP],1,cash[حساب],B166)","v":0},{"$f":"SUMIFS(cash[مبلغ],cash[TYP],2,cash[حساب],B166)","v":0},0,{"$f":"SUMIFS(vam[مبلغ وام],vam[حساب],B166)","v":0},{"$f":"SUMIFS(vam[سود وام],vam[حساب],B166)","v":0},{"$f":"SUMIFS(ghest[مبلغ پرداخته],ghest[حساب],B166)","v":0},0]
[null,null,null,null,null,null,{"$f":"SUMIFS(cash[مبلغ],cash[TYP],1,cash[حساب],B167)","v":0},{"$f":"SUMIFS(cash[مبلغ],cash[TYP],2,cash[حساب],B167)","v":0},{"$f":"F167+G167-H167","v":0},{"$f":"SUMIFS(vam[مبلغ وام],vam[حساب],B167)","v":0},{"$f":"SUMIFS(vam[سود وام],vam[حساب],B167)","v":0},{"$f":"SUMIFS(ghest[مبلغ پرداخته],ghest[حساب],B167)","v":0},{"$f":"J167+K167-L167","v":0}]
[null,null,null,null,null,null,{"$f":"SUMIFS(cash[مبلغ],cash[TYP],1,cash[حساب],B168)","v":0},{"$f":"SUMIFS(cash[مبلغ],cash[TYP],2,cash[حساب],B168)","v":0},0,{"$f":"SUMIFS(vam[مبلغ وام],vam[حساب],B168)","v":0},{"$f":"SUMIFS(vam[سود وام],vam[حساب],B168)","v":0},{"$f":"SUMIFS(ghest[مبلغ پرداخته],ghest[حساب],B168)","v":0},0]
[null,null,null,null,null,null,{"$f":"SUMIFS(cash[مبلغ],cash[TYP],1,cash[حساب],B169)","v":0},{"$f":"SUMIFS(cash[مبلغ],cash[TYP],2,cash[حساب],B169)","v":0},0,{"$f":"SUMIFS(vam[مبلغ وام],vam[حساب],B169)","v":0},{"$f":"SUMIFS(vam[سود وام],vam[حساب],B169)","v":0},{"$f":"SUMIFS(ghest[مبلغ پرداخته],ghest[حساب],B169)","v":0},0]
[null,null,null,null,null,null,{"$f":"SUMIFS(cash[مبلغ],cash[TYP],1,cash[حساب],B170)","v":0},{"$f":"SUMIFS(cash[مبلغ],cash[TYP],2,cash[حساب],B170)","v":0},0,{"$f":"SUMIFS(vam[مبلغ وام],vam[حساب],B170)","v":0},{"$f":"SUMIFS(vam[سود وام],vam[حساب],B170)","v":0},{"$f":"SUMIFS(ghest[مبلغ پرداخته],ghest[حساب],B170)","v":0},0]
[null,null,null,null,null,null,{"$f":"SUMIFS(cash[مبلغ],cash[TYP],1,cash[حساب],B171)","v":0},{"$f":"SUMIFS(cash[مبلغ],cash[TYP],2,cash[حساب],B171)","v":0},0,{"$f":"SUMIFS(vam[مبلغ وام],vam[حساب],B171)","v":0},{"$f":"SUMIFS(vam[سود وام],vam[حساب],B171)","v":0},{"$f":"SUMIFS(ghest[مبلغ پرداخته],ghest[حساب],B171)","v":0},0]
[null,null,null,null,null,null,{"$f":"SUMIFS(cash[مبلغ],cash[TYP],1,cash[حساب],B172)","v":0},{"$f":"SUMIFS(cash[مبلغ],cash[TYP],2,cash[حساب],B172)","v":0},0,{"$f":"SUMIFS(vam[مبلغ وام],vam[حساب],B172)","v":0},{"$f":"SUMIFS(vam[سود وام],vam[حساب],B172)","v":0},{"$f":"SUMIFS(ghest[مبلغ پرداخته],ghest[حساب],B172)","v":0},0]
[null,null,null,null,null,null,{"$f":"SUMIFS(cash[مبلغ],cash[TYP],1,cash[حساب],B173)","v":0},{"$f":"SUMIFS(cash[مبلغ],cash[TYP],2,cash[حساب],B173)","v":0},0,{"$f":"SUMIFS(vam[مبلغ وام],vam[حساب],B173)","v":0},{"$f":"SUMIFS(vam[سود وام],vam[حساب],B173)","v":0},{"$f":"SUMIFS(ghest[مبلغ پرداخته],ghest[حساب],B173)","v":0},0]
[null,null,null,null,null,null,{"$f":"SUMIFS(cash[مبلغ],cash[TYP],1,cash[حساب],B174)","v":0},{"$f":"SUMIFS(cash[مبلغ],cash[TYP],2,cash[حساب],B174)","v":0},0,{"$f":"SUMIFS(vam[مبلغ وام],vam[حساب],B174)","v":0},{"$f":"SUMIFS(vam[سود وام],vam[حساب],B174)","v":0},{"$f":"SUMIFS(ghest[مبلغ پرداخته],ghest[حساب],B174)","v":0},0]
[null,null,null,null,null,null,{"$f":"SUMIFS(cash[مبلغ],cash[TYP],1,cash[حساب],B175)","v":0},{"$f":"SUMIFS(cash[مبلغ],cash[TYP],2,cash[حساب],B175)","v":0},0,{"$f":"SUMIFS(vam[مبلغ وام],vam[حساب],B175)","v":0},{"$f":"SUMIFS(vam[سود وام],vam[حساب],B175)","v":0},{"$f":"SUMIFS(ghest[مبلغ پرداخته],ghest[حساب],B175)","v":0},0]
[null,null,null,null,null,null,{"$f":"SUMIFS(cash[مبلغ],cash[TYP],1,cash[حساب],B176)","v":0},{"$f":"SUMIFS(cash[مبلغ],cash[TYP],2,cash[حساب],B176)","v":0},0,{"$f":"SUMIFS(vam[مبلغ وام],vam[حساب],B176)","v":0},{"$f":"SUMIFS(vam[سود وام],vam[حساب],B176)","v":0},{"$f":"SUMIFS(ghest[مبلغ پرداخته],ghest[حساب],B176)","v":0},0]
[null,null,null,null,null,null,{"$f":"SUMIFS(cash[مبلغ],cash[TYP],1,cash[حساب],B177)","v":0},{"$f":"SUMIFS(cash[مبلغ],cash[TYP],2,cash[حساب],B177)","v":0},0,{"$f":"SUMIFS(vam[مبلغ وام],vam[حساب],B177)","v":0},{"$f":"SUMIFS(vam[سود وام],vam[حساب],B177)","v":0},{"$f":"SUMIFS(ghest[مبلغ پرداخته],ghest[حساب],B177)","v":0},0]
[null,null,null,null,null,null,{"$f":"SUMIFS(cash[مبلغ],cash[TYP],1,cash[حساب],B178)","v":0},{"$f":"SUMIFS(cash[مبلغ],cash[TYP],2,cash[حساب],B178)","v":0},0,{"$f":"SUMIFS(vam[مبلغ وام],vam[حساب],B178)","v":0},{"$f":"SUMIFS(vam[سود وام],vam[حساب],B178)","v":0},{"$f":"SUMIFS(ghest[مبلغ پرداخته],ghest[حساب],B178)","v":0},0]
[null,null,null,null,null,null,{"$f":"SUMIFS(cash[مبلغ],cash[TYP],1,cash[حساب],B179)","v":0},{"$f":"SUMIFS(cash[مبلغ],cash[TYP],2,cash[حساب],B179)","v":0},0,{"$f":"SUMIFS(vam[مبلغ وام],vam[حساب],B179)","v":0},{"$f":"SUMIFS(vam[سود وام],vam[حساب],B179)","v":0},{"$f":"SUMIFS(ghest[مبلغ پرداخته],ghest[حساب],B179)","v":0},0]
[null,null,null,null,null,null,{"$f":"SUMIFS(cash[مبلغ],cash[TYP],1,cash[حساب],B180)","v":0},{"$f":"SUMIFS(cash[مبلغ],cash[TYP],2,cash[حساب],B180)","v":0},0,{"$f":"SUMIFS(vam[مبلغ وام],vam[حساب],B180)","v":0},{"$f":"SUMIFS(vam[سود وام],vam[حساب],B180)","v":0},{"$f":"SUMIFS(ghest[مبلغ پرداخته],ghest[حساب],B180)","v":0},0]
[null,null,null,null,null,null,{"$f":"SUMIFS(cash[مبلغ],cash[TYP],1,cash[حساب],B181)","v":0},{"$f":"SUMIFS(cash[مبلغ],cash[TYP],2,cash[حساب],B181)","v":0},0,{"$f":"SUMIFS(vam[مبلغ وام],vam[حساب],B181)","v":0},{"$f":"SUMIFS(vam[سود وام],vam[حساب],B181)","v":0},{"$f":"SUMIFS(ghest[مبلغ پرداخته],ghest[حساب],B181)","v":0},0]
[null,null,null,null,null,null,{"$f":"SUMIFS(cash[مبلغ],cash[TYP],1,cash[حساب],B182)","v":0},{"$f":"SUMIFS(cash[مبلغ],cash[TYP],2,cash[حساب],B182)","v":0},0,{"$f":"SUMIFS(vam[مبلغ وام],vam[حساب],B182)","v":0},{"$f":"SUMIFS(vam[سود وام],vam[حساب],B182)","v":0},{"$f":"SUMIFS(ghest[مبلغ پرداخته],ghest[حساب],B182)","v":0},0]
[null,null,null,null,null,null,{"$f":"SUMIFS(cash[مبلغ],cash[TYP],1,cash[حساب],B183)","v":0},{"$f":"SUMIFS(cash[مبلغ],cash[TYP],2,cash[حساب],B183)","v":0},0,{"$f":"SUMIFS(vam[مبلغ وام],vam[حساب],B183)","v":0},{"$f":"SUMIFS(vam[سود وام],vam[حساب],B183)","v":0},{"$f":"SUMIFS(ghest[مبلغ پرداخته],ghest[حساب],B183)","v":0},0]
[null,null,null,null,null,null,{"$f":"SUMIFS(cash[مبلغ],cash[TYP],1,cash[حساب],B184)","v":0},{"$f":"SUMIFS(cash[مبلغ],cash[TYP],2,cash[حساب],B184)","v":0},0,{"$f":"SUMIFS(vam[مبلغ وام],vam[حساب],B184)","v":0},{"$f":"SUMIFS(vam[سود وام],vam[حساب],B184)","v":0},{"$f":"SUMIFS(ghest[مبلغ پرداخته],ghest[حساب],B184)","v":0},0]
[null,null,null,null,null,null,{"$f":"SUMIFS(cash[مبلغ],cash[TYP],1,cash[حساب],B185)","v":0},{"$f":"SUMIFS(cash[مبلغ],cash[TYP],2,cash[حساب],B185)","v":0},0,{"$f":"SUMIFS(vam[مبلغ وام],vam[حساب],B185)","v":0},{"$f":"SUMIFS(vam[سود وام],vam[حساب],B185)","v":0},{"$f":"SUMIFS(ghest[مبلغ پرداخته],ghest[حساب],B185)","v":0},0]
[null,null,null,null,null,null,{"$f":"SUMIFS(cash[مبلغ],cash[TYP],1,cash[حساب],B186)","v":0},{"$f":"SUMIFS(cash[مبلغ],cash[TYP],2,cash[حساب],B186)","v":0},0,{"$f":"SUMIFS(vam[مبلغ وام],vam[حساب],B186)","v":0},{"$f":"SUMIFS(vam[سود وام],vam[حساب],B186)","v":0},{"$f":"SUMIFS(ghest[مبلغ پرداخته],ghest[حساب],B186)","v":0},0]
[null,null,null,null,null,null,{"$f":"SUMIFS(cash[مبلغ],cash[TYP],1,cash[حساب],B187)","v":0},{"$f":"SUMIFS(cash[مبلغ],cash[TYP],2,cash[حساب],B187)","v":0},0,{"$f":"SUMIFS(vam[مبلغ وام],vam[حساب],B187)","v":0},{"$f":"SUMIFS(vam[سود وام],vam[حساب],B187)","v":0},{"$f":"SUMIFS(ghest[مبلغ پرداخته],ghest[حساب],B187)","v":0},0]
[null,null,null,null,null,null,{"$f":"SUMIFS(cash[مبلغ],cash[TYP],1,cash[حساب],B188)","v":0},{"$f":"SUMIFS(cash[مبلغ],cash[TYP],2,cash[حساب],B188)","v":0},0,{"$f":"SUMIFS(vam[مبلغ وام],vam[حساب],B188)","v":0},{"$f":"SUMIFS(vam[سود وام],vam[حساب],B188)","v":0},{"$f":"SUMIFS(ghest[مبلغ پرداخته],ghest[حساب],B188)","v":0},0]
[null,null,null,null,null,null,{"$f":"SUMIFS(cash[مبلغ],cash[TYP],1,cash[حساب],B189)","v":0},{"$f":"SUMIFS(cash[مبلغ],cash[TYP],2,cash[حساب],B189)","v":0},0,{"$f":"SUMIFS(vam[مبلغ وام],vam[حساب],B189)","v":0},{"$f":"SUMIFS(vam[سود وام],vam[حساب],B189)","v":0},{"$f":"SUMIFS(ghest[مبلغ پرداخته],ghest[حساب],B189)","v":0},0]
[null,null,null,null,null,null,{"$f":"SUMIFS(cash[مبلغ],cash[TYP],1,cash[حساب],B190)","v":0},{"$f":"SUMIFS(cash[مبلغ],cash[TYP],2,cash[حساب],B190)","v":0},0,{"$f":"SUMIFS(vam[مبلغ وام],vam[حساب],B190)","v":0},{"$f":"SUMIFS(vam[سود وام],vam[حساب],B190)","v":0},{"$f":"SUMIFS(ghest[مبلغ پرداخته],ghest[حساب],B190)","v":0},0]
[null,null,null,null,null,null,{"$f":"SUMIFS(cash[مبلغ],cash[TYP],1,cash[حساب],B191)","v":0},{"$f":"SUMIFS(cash[مبلغ],cash[TYP],2,cash[حساب],B191)","v":0},0,{"$f":"SUMIFS(vam[مبلغ وام],vam[حساب],B191)","v":0},{"$f":"SUMIFS(vam[سود وام],vam[حساب],B191)","v":0},{"$f":"SUMIFS(ghest[مبلغ پرداخته],ghest[حساب],B191)","v":0},0]
[null,null,null,null,null,null,{"$f":"SUMIFS(cash[مبلغ],cash[TYP],1,cash[حساب],B192)","v":0},{"$f":"SUMIFS(cash[مبلغ],cash[TYP],2,cash[حساب],B192)","v":0},0,{"$f":"SUMIFS(vam[مبلغ وام],vam[حساب],B192)","v":0},{"$f":"SUMIFS(vam[سود وام],vam[حساب],B192)","v":0},{"$f":"SUMIFS(ghest[مبلغ پرداخته],ghest[حساب],B192)","v":0},0]
[null,null,null,null,null,null,{"$f":"SUMIFS(cash[مبلغ],cash[TYP],1,cash[حساب],B193)","v":0},{"$f":"SUMIFS(cash[مبلغ],cash[TYP],2,cash[حساب],B193)","v":0},0,{"$f":"SUMIFS(vam[مبلغ وام],vam[حساب],B193)","v":0},{"$f":"SUMIFS(vam[سود وام],vam[حساب],B193)","v":0},{"$f":"SUMIFS(ghest[مبلغ پرداخته],ghest[حساب],B193)","v":0},0]
[null,null,null,null,null,null,{"$f":"SUMIFS(cash[مبلغ],cash[TYP],1,cash[حساب],B194)","v":0},{"$f":"SUMIFS(cash[مبلغ],cash[TYP],2,cash[حساب],B194)","v":0},0,{"$f":"SUMIFS(vam[مبلغ وام],vam[حساب],B194)","v":0},{"$f":"SUMIFS(vam[سود وام],vam[حساب],B194)","v":0},{"$f":"SUMIFS(ghest[مبلغ پرداخته],ghest[حساب],B194)","v":0},0]
[null,null,null,null,null,null,{"$f":"SUMIFS(cash[مبلغ],cash[TYP],1,cash[حساب],B195)","v":0},{"$f":"SUMIFS(cash[مبلغ],cash[TYP],2,cash[حساب],B195)","v":0},0,{"$f":"SUMIFS(vam[مبلغ وام],vam[حساب],B195)","v":0},{"$f":"SUMIFS(vam[سود وام],vam[حساب],B195)","v":0},{"$f":"SUMIFS(ghest[مبلغ پرداخته],ghest[حساب],B195)","v":0},0]
[null,null,null,null,null,null,{"$f":"SUMIFS(cash[مبلغ],cash[TYP],1,cash[حساب],B196)","v":0},{"$f":"SUMIFS(cash[مبلغ],cash[TYP],2,cash[حساب],B196)","v":0},0,{"$f":"SUMIFS(vam[مبلغ وام],vam[حساب],B196)","v":0},{"$f":"SUMIFS(vam[سود وام],vam[حساب],B196)","v":0},{"$f":"SUMIFS(ghest[مبلغ پرداخته],ghest[حساب],B196)","v":0},0]
[null,null,null,null,null,null,{"$f":"SUMIFS(cash[مبلغ],cash[TYP],1,cash[حساب],B197)","v":0},{"$f":"SUMIFS(cash[مبلغ],cash[TYP],2,cash[حساب],B197)","v":0},0,{"$f":"SUMIFS(vam[مبلغ وام],vam[حساب],B197)","v":0},{"$f":"SUMIFS(vam[سود وام],vam[حساب],B197)","v":0},{"$f":"SUMIFS(ghest[مبلغ پرداخته],ghest[حساب],B197)","v":0},0]
[null,null,null,null,null,null,{"$f":"SUMIFS(cash[مبلغ],cash[TYP],1,cash[حساب],B198)","v":0},{"$f":"SUMIFS(cash[مبلغ],cash[TYP],2,cash[حساب],B198)","v":0},0,{"$f":"SUMIFS(vam[مبلغ وام],vam[حساب],B198)","v":0},{"$f":"SUMIFS(vam[سود وام],vam[حساب],B198)","v":0},{"$f":"SUMIFS(ghest[مبلغ پرداخته],ghest[حساب],B198)","v":0},0]
[null,null,null,null,null,null,{"$f":"SUMIFS(cash[مبلغ],cash[TYP],1,cash[حساب],B199)","v":0},{"$f":"SUMIFS(cash[مبلغ],cash[TYP],2,cash[حساب],B199)","v":0},{"$f":"F199+G199-H199","v":0},{"$f":"SUMIFS(vam[مبلغ وام],vam[حساب],B199)","v":0},{"$f":"SUMIFS(vam[سود وام],vam[حساب],B199)","v":0},{"$f":"SUMIFS(ghest[مبلغ پرداخته],ghest[حساب],B199)","v":0},{"$f":"J199+K199-L199","v":0}]
[null,null,null,null,null,null,{"$f":"SUMIFS(cash[مبلغ],cash[TYP],1,cash[حساب],B200)","v":0},{"$f":"SUMIFS(cash[مبلغ],cash[TYP],2,cash[حساب],B200)","v":0},0,{"$f":"SUMIFS(vam[مبلغ وام],vam[حساب],B200)","v":0},{"$f":"SUMIFS(vam[سود وام],vam[حساب],B200)","v":0},{"$f":"SUMIFS(ghest[مبلغ پرداخته],ghest[حساب],B200)","v":0},0]
[null,null,null,null,null,null,{"$f":"SUMIFS(cash[مبلغ],cash[TYP],1,cash[حساب],B201)","v":0},{"$f":"SUMIFS(cash[مبلغ],cash[TYP],2,cash[حساب],B201)","v":0},0,{"$f":"SUMIFS(vam[مبلغ وام],vam[حساب],B201)","v":0},{"$f":"SUMIFS(vam[سود وام],vam[حساب],B201)","v":0},{"$f":"SUMIFS(ghest[مبلغ پرداخته],ghest[حساب],B201)","v":0},0]
[null,null,null,null,null,null,{"$f":"SUMIFS(cash[مبلغ],cash[TYP],1,cash[حساب],B202)","v":0},{"$f":"SUMIFS(cash[مبلغ],cash[TYP],2,cash[حساب],B202)","v":0},0,{"$f":"SUMIFS(vam[مبلغ وام],vam[حساب],B202)","v":0},{"$f":"SUMIFS(vam[سود وام],vam[حساب],B202)","v":0},{"$f":"SUMIFS(ghest[مبلغ پرداخته],ghest[حساب],B202)","v":0},0]
[null,null,null,null,null,null,{"$f":"SUMIFS(cash[مبلغ],cash[TYP],1,cash[حساب],B203)","v":0},{"$f":"SUMIFS(cash[مبلغ],cash[TYP],2,cash[حساب],B203)","v":0},0,{"$f":"SUMIFS(vam[مبلغ وام],vam[حساب],B203)","v":0},{"$f":"SUMIFS(vam[سود وام],vam[حساب],B203)","v":0},{"$f":"SUMIFS(ghest[مبلغ پرداخته],ghest[حساب],B203)","v":0},0]